Workbook

Sheet readme
A1: Wageningen, 14 July 2014: | B1: links
A2: A typo was discovered in the poster during the EAPR2014 meeting: | B2: www.eapr2014.be
A3: profile 270 is identical to 269 and this has now been corrected.
A4: Therefore the number of different profiles should be 397.
A5: The downloads of the poster and its summary were adapted.
A6: The address of E. Droz was updated.
A7: A sheet on allele frequencies included.
A9: Wageningen, 25 July 2014:
A10: Data export macro included for NTSys | B10: www.exetersoftware.com/cat/ntsyspc/ntsyspc.html
A11: Data export macro included for Darwin | B11: http://darwin.cirad.fr
A12: please report comments or bugs to: | B12: roel.hoekstra@wur.nl
A14: Wageningen, 5 September 2014:
A15: Table with allele sizes from a 3500xl sequencer at SASA included.
A16: The sizes may differ somewhat on other equipment.
A17: Harmonization is achieved by running a set of standard DNA samples.
A19: Wageningen, 9 September 2014:
A20: Minor change in subroutine "SetIniValues"
A21: Minimum list of 17 genotypes with all 95 alleles in the study.
A23: R. Hoekstra, CGN

Sheet Alleles
A1: Key | B1: Variety Denomination | C1: sample | D1: CommonCatalogue | E1: 0019 | F1: 1016 | G1: 1024 | H1: 2005 | I1: 2022 | J1: 2028 | K1: 3009 | L1: 3012 | M1: 3023 | N1: 5136 | O1: 5148 | P1: SSR1 | Q1: profile | R1: remarks | S1: #matches
A2: AEG-0241 | B2: Producent | C2: GBR | D2: y | E2: AF | F2: DLM | G2: C | H2: AD | I2: E | J2: BG | L2: ABCD | M2: AB | N2: EFH | O2: LMOP | P2: ADI | Q2: 1 | R2: 3009 missing
A3: AEG-0067 | B3: Brenda | C3: FRA | D3: n | E3: AG | F3: GL | G3: C | H3: ABD | I3: E | J3: BC | K3: FG | L3: B | M3: AD | N3: EFH | O3: I | P3: DJ | Q3: 2
A4: AEG-0102 | B4: Sparrispotatis | C4: SWE | D4: n | E4: B | F4: CHM | G4: CDE | H4: ADF | I4: E | J4: AB | K4: FG | L4: B | M4: D | N4: DEF | O4: BIJ | P4: ACI | Q4: 3
A5: AEG-P065 | B5: Jakobi | C5: CHE | D5: n | E5: B | F5: DG | G5: CE | H5: BD | I5: E | J5: ACE | K5: F | L5: B | M5: BD | N5: EF | O5: BJP | P5: FI | Q5: 4
A6: AEG-10275 | B6: Edelgard | C6: DEU | D6: n | E6: B | F6: DGHL | G6: BC | H6: ADF | I6: E | J6: AC | K6: FG | L6: BCF | M6: AD | N6: EF | O6: BIO | P6: BDFI | Q6: 5
A7: AEG-10396 | B7: Tedria | C7: DEU | D7: n | E7: B | F7: DGL | G7: C | H7: AB | I7: E | J7: AC | K7: FG | L7: B | M7: AD | N7: CEF | O7: ABJO | P7: DFG | Q7: 6
A8: AEG-10777 | B8: Bomba | C8: DEU | D8: n | E8: B | F8: DGL | G8: CDE | H8: AB | I8: E | J8: AB | K8: BF | L8: B | M8: ABD | N8: DEF | O8: BOP | P8: DFI | Q8: 7
A9: AEG-10030 | B9: Sefton_Wonder | C9: DEU | D9: n | E9: B | F9: DGL | G9: CE | H9: AB | I9: E | J9: ACE | K9: BFG | L9: B | M9: AD | N9: CEF | O9: EJOP | P9: DFI | Q9: 8
A10: AEG-0066 | B10: Solanum | C10: FRA | D10: n | E10: B | F10: DGL | G10: CE | H10: BD | I10: E | J10: AC | K10: BG | L10: BC | M10: AD | N10: DEF | O10: BIJ | P10: ADFI | Q10: 9
A11: AEG-0163 | B11: Odenwalder_Blaue | C11: GBR | D11: n | E11: B | F11: DL | G11: C | H11: BDF | I11: E | J11: CE | K11: BDF | L11: BG | M11: AD | N11: DEF | O11: BJOQ | P11: DI | Q11: 10
A12: AEG-0193 | B12: Pimpernel | C12: GBR | D12: y | E12: B | F12: DL | G12: CD | H12: ABD | I12: E | J12: AB | K12: FG | L12: BCD | M12: AD | N12: CFH | O12: BJO | P12: DGI | Q12: 11
A13: AEG-10381 | B13: Flaminia | C13: DEU | D13: n | E13: B | F13: DM | G13: CEG | H13: ABD | I13: E | J13: ABCE | K13: G | L13: BF | M13: AB | N13: EF | O13: BIJO | P13: AI | Q13: 12 | S13: 1
A14: AEG-0056 | B14: Flaminia | C14: FRA | D14: n | E14: B | F14: DM | G14: CEG | H14: ABD | I14: E | J14: ABCE | K14: G | L14: BF | M14: AB | N14: EF | O14: BIJO | P14: AI | Q14: 12 | S14: 1
A15: AEG-10819 | B15: Grom | C15: DEU | D15: n | E15: B | F15: GL | G15: CDE | H15: ABD | I15: E | J15: AE | K15: BFG | L15: BC | M15: AD | N15: DEF | O15: BIJ | P15: DF | Q15: 13
A16: AEG-0003 | B16: Kungla | C16: UKR | D16: n | E16: B | F16: GL | G16: CE | H16: ABD | I16: E | J16: ABC | K16: FG | L16: BD | M16: AD | N16: CEF | O16: BJ | P16: DF | Q16: 14
A17: AEG-0104 | B17: Åspotet | C17: SWE | D17: n | E17: B | F17: GL | G17: CE | H17: ABD | I17: E | J17: AC | K17: F | L17: B | M17: AD | N17: DEF | O17: JO | P17: DF | Q17: 15
A18: AEG-10438 | B18: Topas_(1920) | C18: DEU | D18: n | E18: B | F18: GLM | G18: CE | H18: ABDF | I18: BEG | J18: BE | K18: FG | L18: BF | M18: AD | N18: DEH | O18: AIOP | P18: ADF | Q18: 16
A19: AEG-10237 | B19: Berlichingen | C19: DEU | D19: n | E19: B | F19: GLM | G19: CE | H19: AD | I19: BEG | J19: ABC | K19: BG | L19: B | M19: AD | N19: DE | O19: JO | P19: ADF | Q19: 17
A20: AEG-0028 | B20: Kotnov | C20: CZE | D20: n | E20: B | F20: GM | G20: CE | H20: AB | I20: BEG | J20: AC | K20: BFG | L20: BCD | M20: AD | N20: DEF | O20: JO | P20: AF | Q20: 18
A21: AEG-10904 | B21: Früka | C21: DEU | D21: n | E21: B | F21: HL | G21: CDE | H21: BD | I21: E | J21: A | K21: CF | L21: B | M21: ABD | N21: CFH | O21: BJO | P21: DI | Q21: 19
A22: AEG-12565 | B22: Fontana | C22: DEU | D22: n | E22: BD | F22: CDGH | G22: CE | H22: AD | I22: BE | J22: AE | K22: BDF | L22: BD | M22: AD | N22: EF | O22: BNOP | P22: CFI | Q22: 20
A23: AEG-10837 | B23: Flora_(1939) | C23: DEU | D23: y | E23: BD | F23: DG | G23: CDG | H23: ABD | I23: BE | J23: AC | K23: FG | L23: BCF | M23: AD | N23: DEF | O23: IJO | P23: FI | Q23: 21
A24: AEG-10647 | B24: Barima | C24: DEU | D24: n | E24: BD | F24: DG | G24: CE | H24: BDF | I24: BE | J24: AC | K24: FG | L24: BCF | M24: ABD | N24: EF | O24: IJP | P24: FI | Q24: 22
A25: DAFF-T-039 | B25: Provita | C25: IRL | E25: BD | F25: DGHL | G25: BCE | H25: ABD | I25: BE | J25: A | K25: BG | L25: BCD | M25: AB | N25: EF | O25: CGIP | P25: BDFI | Q25: 23
A26: AEG-10539 | B26: Ovalgelbe | C26: DEU | D26: n | E26: BD | F26: DGHL | G26: CE | H26: ABD | I26: E | J26: AC | K26: FG | L26: BD | M26: AD | N26: EH | O26: JNO | P26: DFI | Q26: 24
A27: AEG-0055 | B27: Farfadette | C27: FRA | D27: n | E27: BD | F27: DGL | G27: CE | H27: BD | I27: E | J27: AC | K27: FG | L27: BC | M27: AD | N27: EFH | O27: JO | P27: DFI | Q27: 25
A28: AEG-0026 | B28: Kardinál | C28: CZE | D28: n | E28: BD | F28: DGL | G28: CG | H28: ABD | I28: BE | J28: A | K28: FG | L28: BC | M28: AD | N28: DEH | O28: JO | P28: DFI | Q28: 26
A29: AEG-0076 | B29: Birgitta | C29: SWE | D29: n | E29: BD | F29: DHL | G29: CD | H29: BD | I29: BE | J29: ACE | K29: F | L29: BDG | M29: ABD | N29: EF | O29: JOP | P29: BDK | Q29: 27
A30: AEG-0011 | B30: Bella | C30: CZE | D30: y | E30: BD | F30: DL | G30: CD | H30: BD | I30: E | J30: AC | K30: FG | L30: C | M30: AD | N30: CDE | O30: BCGJ | P30: DGI | Q30: 28
A31: AEG-0024 | B31: Hopehely | C31: CZE | D31: n | E31: BD | F31: DL | G31: CDE | H31: ABD | I31: E | J31: A | K31: FG | L31: B | M31: CD | N31: CEF | O31: AJO | P31: DI | Q31: 29
A32: AEG-0022 | B32: Granàt | C32: CZE | D32: n | E32: BD | F32: GLM | G32: CDE | H32: ABD | I32: BE | J32: AC | K32: FG | L32: BC | M32: AD | N32: EFH | O32: AIOP | P32: ADF | Q32: 30
A33: AEG-10122 | B33: Wyszoborski | C33: DEU | D33: n | E33: BDE | F33: CEGM | G33: C | H33: AD | I33: E | J33: BCE | K33: CFG | L33: BF | M33: AB | N33: DEFH | O33: IJNP | P33: ACFL | Q33: 31
A34: AEG-10590 | B34: Capella | C34: DEU | D34: n | E34: BDE | F34: DGH | G34: CE | H34: ABD | I34: BEG | J34: ACE | K34: BG | L34: B | M34: AB | N34: EF | O34: BJO | P34: FI | Q34: 32
A35: AEG-0083 | B35: Fjellfinn | C35: SWE | D35: n | E35: BDE | F35: DGH | G35: CE | H35: BDF | I35: BE | J35: AC | K35: BG | L35: BCF | M35: AB | N35: EFH | O35: BIJP | P35: FI | Q35: 33
A36: AEG-10825 | B36: Delfin | C36: DEU | D36: n | E36: BDF | F36: DG | G36: CE | H36: ABF | I36: E | J36: ACE | K36: DG | L36: BC | M36: AD | N36: CDFH | O36: JO | P36: DFI | Q36: 34
A37: AEG-11717 | B37: Palma_(1972) | C37: DEU | D37: y | E37: BDF | F37: DG | G37: CE | H37: BD | I37: E | J37: AC | K37: G | L37: BCF | M37: AD | N37: EF | O37: JO | P37: FI | Q37: 35
A38: AEG-10338 | B38: Böhms_Mittelfrühe | C38: DEU | D38: n | E38: BDF | F38: DGL | G38: CDE | H38: ABF | I38: E | J38: ACE | K38: BFG | L38: BCDF | M38: AD | N38: FH | O38: AIO | P38: DFI | Q38: 36
A39: AEG-10506 | B39: Bendetta | C39: DEU | D39: n | E39: BDF | F39: DGL | G39: CE | H39: AB | I39: E | J39: AC | K39: F | L39: BC | M39: D | N39: EF | O39: BO | P39: DFI | Q39: 37
A40: AEG-11519 | B40: Isola | C40: DEU | D40: n | E40: BDF | F40: DGL | G40: CE | H40: ABD | I40: E | J40: AC | K40: FG | L40: BCD | M40: AD | N40: DF | O40: JO | P40: DFI | Q40: 38
A41: AEG-10372 | B41: Luna_(1954) | C41: DEU | D41: n | E41: BDF | F41: DGL | G41: CE | H41: B | I41: E | J41: C | K41: FGK | L41: BCF | M41: D | N41: EF | O41: NO | P41: DFI | Q41: 39
A42: AEG-0058 | B42: Mador | C42: FRA | D42: n | E42: BDF | F42: DHL | G42: C | H42: BDF | I42: E | J42: A | K42: G | L42: BF | M42: AD | N42: CDFH | O42: EJP | P42: BDI | Q42: 40
A43: AEG-10542 | B43: Ancilla | C43: DEU | D43: n | E43: BDF | F43: DHL | G43: CE | H43: BDF | I43: E | J43: AC | K43: F | L43: BDF | M43: AD | N43: CE | O43: JO | P43: DI | Q43: 41
A44: AEG-P022 | B44: Röseler | C44: CHE | D44: n | E44: BDF | F44: DL | G44: C | H44: ADF | I44: E | J44: AC | K44: BFG | L44: BDF | M44: BD | N44: EF | O44: BJOP | P44: DIK | Q44: 42
A45: AEG-0082 | B45: Eva | C45: SWE | D45: n | E45: BDF | F45: DL | G45: CE | H45: AB | I45: E | J45: AC | K45: FG | L45: BDF | M45: ABD | N45: DEFH | O45: IJO | P45: DI | Q45: 43
A46: AEG-10343 | B46: Prozentragis | C46: DEU | D46: n | E46: BDF | F46: DLM | G46: CE | H46: BF | I46: E | J46: ABC | K46: FG | L46: B | M46: AD | N46: CDFH | O46: JOP | P46: ADIK | Q46: 44
A47: AEG-0030 | B47: Kvetuše | C47: CZE | D47: n | E47: BDF | F47: GLM | G47: C | H47: AD | I47: E | J47: AC | K47: BG | L47: BCF | M47: A | N47: EFH | O47: IJO | P47: ADF | Q47: 45
A48: DAFF-J-120 | B48: Pionier | C48: IRL | E48: BDFG | F48: CDL | G48: C | H48: ABDF | I48: BE | J48: AC | K48: BF | L48: BF | M48: ABD | N48: EFH | O48: INP | P48: CDI | Q48: 46
A49: AEG-10431 | B49: Toni | C49: DEU | D49: n | E49: BDFG | F49: DGM | G49: CE | H49: BD | I49: E | J49: A | K49: G | L49: BCD | M49: ABD | N49: EFH | O49: JO | P49: AFI | Q49: 47
A50: AEG-12038 | B50: Stormont_Star | C50: DEU | D50: n | E50: BDG | F50: CDG | G50: CE | H50: ABD | I50: E | J50: AC | K50: BFG | L50: BCDF | M50: BD | N50: EH | O50: BIO | P50: CFI | Q50: 48
A51: AEG-10339 | B51: Nobelia | C51: DEU | D51: n | E51: BDG | F51: CDL | G51: CE | H51: BDF | I51: E | J51: AC | K51: FG | L51: BF | M51: ABD | N51: EF | O51: ABJ | P51: CDI | Q51: 49
A52: AEG-0033 | B52: Monika | C52: CZE | D52: n | E52: BDG | F52: DEL | G52: CE | H52: BD | I52: BE | J52: ABE | K52: BFG | L52: BCF | M52: CD | N52: CDF | O52: JO | P52: DIL | Q52: 50 | S52: 1
A53: AEG-0034 | B53: Monika | C53: CZE | D53: n | E53: BDG | F53: DEL | G53: CE | H53: BD | I53: BE | J53: ABE | K53: BFG | L53: BCF | M53: CD | N53: CDF | O53: JO | P53: DIL | Q53: 50 | S53: 1
A54: AEG-0053 | B54: Daroli | C54: FRA | D54: n | E54: BDG | F54: DGHL | G54: CE | H54: BDF | I54: BE | J54: AC | K54: BFG | L54: BC | M54: A | N54: CEFH | O54: JP | P54: DFI | Q54: 51
A55: AEG-0027 | B55: Karmen | C55: CZE | D55: n | E55: BDG | F55: DHLM | G55: CE | H55: ABD | I55: E | J55: A | K55: FG | L55: B | M55: ABD | N55: EFH | O55: BJN | P55: ADI | Q55: 52
A56: AEG-12115 | B56: Saga | C56: DEU | D56: n | E56: BDG | F56: DL | G56: CE | H56: ADF | I56: E | J56: ACE | K56: FG | L56: BDF | M56: D | N56: DFH | O56: IJO | P56: DI | Q56: 53
A57: AEG-11470 | B57: Gloria_(1972) | C57: DEU | D57: y | E57: BDG | F57: HL | G57: BCD | H57: ABD | I57: DE | J57: BC | K57: B | L57: AB | M57: ABD | N57: CDFH | O57: GJM | P57: BD | Q57: 54
A58: AEG-0236 | B58: Saphir | C58: GBR | D58: n | E58: BE | F58: ADG | G58: CE | H58: ADF | I58: E | J58: AD | K58: GK | L58: BCF | M58: AD | N58: EF | O58: IJ | P58: FI | Q58: 55
A59: AEG-10585 | B59: Robusta_(1941) | C59: DEU | D59: n | E59: BE | F59: CDG | G59: C | H59: BDF | I59: E | J59: ACD | K59: FH | L59: B | M59: AD | N59: CEF | O59: BNO | P59: CFI | Q59: 56
A60: AEG-10525 | B60: Rosa_(1958) | C60: DEU | D60: y | E60: BE | F60: CDG | G60: CD | H60: ABF | I60: BE | J60: ACE | K60: FG | L60: BCF | M60: D | N60: EFH | O60: BJNO | P60: CFI | Q60: 57
A61: AEG-10541 | B61: Rostwitha | C61: DEU | D61: n | E61: BE | F61: CDGL | G61: CDE | H61: ABF | I61: BE | J61: AC | K61: FK | L61: BF | M61: AD | N61: CEF | O61: BJNO | P61: CDFI | Q61: 58
A62: AEG-10348 | B62: Speisegold | C62: DEU | D62: n | E62: BE | F62: DGL | G62: C | H62: AD | I62: E | J62: AC | K62: BG | L62: BC | M62: AD | N62: EF | O62: IJ | P62: DFI | Q62: 59
A63: AEG-10332 | B63: Hindenburg | C63: DEU | D63: n | E63: BE | F63: DGL | G63: CDE | H63: AB | I63: E | J63: AC | K63: FG | L63: BC | M63: D | N63: EFH | O63: IJO | P63: DFI | Q63: 60
A64: AEG-10480 | B64: Wiga | C64: DEU | D64: n | E64: BE | F64: DGL | G64: CDE | H64: ABF | I64: E | J64: ACE | K64: FG | L64: BCDF | M64: AD | N64: EFH | O64: IJO | P64: DFI | Q64: 61
A65: AEG-10517 | B65: Sperber | C65: DEU | D65: n | E65: BE | F65: DGL | G65: CE | H65: AB | I65: E | J65: AC | K65: F | L65: BF | M65: AD | N65: CEF | O65: BJO | P65: DFI | Q65: 62
A66: AEG-10363 | B66: Erntedank | C66: DEU | D66: n | E66: BE | F66: DGL | G66: CE | H66: ABD | I66: E | J66: AC | K66: FG | L66: BC | M66: AD | N66: EF | O66: JO | P66: DFI | Q66: 63
A67: AEG-10231 | B67: Akebia | C67: DEU | D67: n | E67: BE | F67: GL | G67: CE | H67: ABD | I67: E | J67: AC | K67: FG | L67: BC | M67: AD | N67: DEF | O67: JOP | P67: DF | Q67: 64
A68: AEG-10829 | B68: Palma_(1951) | C68: DEU | D68: n | E68: BEF | F68: DG | G68: CDE | H68: ADF | I68: BEG | J68: AC | K68: FG | L68: BF | M68: AD | N68: DFH | O68: IJO | P68: FI | Q68: 65
A69: 07/315 | B69: Etoile_Du_Nord | C69: GBR | D69: n | E69: BEG | F69: CD | G69: CG | H69: AF | I69: E | J69: ABC | K69: F | L69: B | M69: ABD | N69: DE | O69: BIJO | P69: CI | Q69: 66
A70: AEG-12139 | B70: Adelheid | C70: DEU | D70: n | E70: BEG | F70: DGL | G70: CDE | H70: AD | I70: E | J70: AC | K70: F | L70: BF | M70: AD | N70: EF | O70: JOP | P70: DFI | Q70: 67 | S70: 1
A71: AEG-10522 | B71: Oberambacher_Adelheid | C71: DEU | D71: n | E71: BEG | F71: DGL | G71: CDE | H71: AD | I71: E | J71: AC | K71: F | L71: BF | M71: AD | N71: EF | O71: JOP | P71: DFI | Q71: 67 | S71: 1
A72: AEG-12682 | B72: Alma_(?) | C72: DEU | D72: n | E72: BEG | F72: DGL | G72: CE | H72: ABD | I72: BE | J72: A | K72: FG | L72: BC | M72: AD | N72: EF | O72: JOP | P72: DFI | Q72: 68
A73: AEG-10511 | B73: Erdkraft | C73: DEU | D73: n | E73: BEG | F73: DGL | G73: CE | H73: ABF | I73: E | J73: ACE | K73: F | L73: BCF | M73: AD | N73: DE | O73: BJOP | P73: DFI | Q73: 69
A74: AEG-10543 | B74: Athene_(1964) | C74: DEU | D74: n | E74: BEG | F74: DGLM | G74: CE | H74: ABD | I74: BEG | J74: AC | K74: FG | L74: BCD | M74: AD | N74: EF | O74: JOP | P74: ADFI | Q74: 70
A75: AEG-10374 | B75: Pavo | C75: DEU | D75: n | E75: BEG | F75: DL | G75: C | H75: AD | I75: E | J75: AB | K75: F | L75: BDF | M75: AD | N75: EF | O75: BJOP | P75: DGI | Q75: 71
A76: AEG-12147 | B76: Mehlige_Mühlviertler | C76: DEU | D76: n | E76: BEG | F76: DL | G76: CE | H76: BD | I76: E | J76: ABC | K76: FG | L76: CDF | M76: AD | N76: EF | O76: IOP | P76: DI | Q76: 72
A77: AEG-10827 | B77: Baltyk | C77: DEU | D77: n | E77: BEG | F77: GL | G77: CE | H77: AB | I77: E | J77: AC | K77: FG | L77: BCD | M77: ABD | N77: DEFH | O77: BIJ | P77: DF | Q77: 73
A78: AEG-0191 | B78: Orkney_Black | C78: GBR | D78: n | E78: BF | F78: CD | G78: CEG | H78: ADF | I78: BE | J78: A | K78: BCG | L78: B | M78: AD | N78: FH | O78: EJP | P78: CGIK | Q78: 74
A79: AEG-0106 | B79: Blå_Mandel | C79: SWE | D79: n | E79: BF | F79: CD | G79: CG | H79: DF | I79: BE | J79: A | K79: D | L79: BC | M79: AD | N79: CFH | O79: IM | P79: CGIK | Q79: 75
A80: AEG-10642 | B80: Anemone | C80: DEU | D80: n | E80: BF | F80: CDG | G80: C | H80: BD | I80: BE | J80: A | K80: FG | L80: BCF | M80: AD | N80: EFH | O80: JO | P80: CFGI | Q80: 76
A81: AEG-0184 | B81: John_Bull | C81: GBR | D81: n | E81: BF | F81: CDG | G81: CE | H81: ABD | I81: BEG | J81: ABC | K81: BF | L81: B | M81: AD | N81: DEF | O81: BEOP | P81: CFI | Q81: 77
A82: AEG-0085 | B82: Kaptah | C82: SWE | D82: n | E82: BF | F82: CDG | G82: CE | H82: ABD | I82: E | J82: AD | K82: FG | L82: B | M82: AD | N82: CDEF | O82: BIO | P82: CFI | Q82: 78
A83: AEG-P073 | B83: Alma | C83: CHE | D83: n | E83: BF | F83: CDGL | G83: CE | H83: AB | I83: E | J83: AC | K83: FG | L83: BD | M83: ABD | N83: DEFH | O83: BIJ | P83: CDFI | Q83: 79
A84: 06/308 | B84: Aura | C84: GBR | D84: n | E84: BF | F84: CDGM | G84: CDE | H84: ABF | I84: BE | J84: AC | K84: CG | L84: BCDF | M84: ACD | N84: DEFH | O84: IJMO | P84: ACFI | Q84: 80 | S84: 1
A85: AEG-0046 | B85: Aura | C85: FRA | D85: n | E85: BF | F85: CDGM | G85: CDE | H85: ABF | I85: BE | J85: AC | K85: CG | L85: BCDF | M85: ACD | N85: DEFH | O85: IJMO | P85: ACFI | Q85: 80 | S85: 1
A86: AEG-0198 | B86: Yam | C86: GBR | D86: n | E86: BF | F86: CDH | G86: CDEG | H86: ABDF | I86: BEG | J86: ACE | K86: CF | L86: BD | M86: ABCD | N86: EFH | O86: AEIP | P86: CIK | Q86: 81
A87: AEG-0094 | B87: Lang_Svenske | C87: SWE | D87: n | E87: BF | F87: CDH | G87: CE | H87: AF | I87: BE | J87: AC | K87: CDG | L87: BD | M87: ABCD | N87: DEF | O87: EIJ | P87: CGI | Q87: 82
A88: AEG-P009 | B88: Parli | C88: CHE | D88: n | E88: BF | F88: CDHL | G88: CE | H88: DF | I88: BE | J88: ABC | K88: CFG | L88: B | M88: ACD | N88: DEF | O88: BIJO | P88: CDI | Q88: 83
A89: AEG-0098 | B89: Ringerikspotet | C89: SWE | D89: n | E89: BF | F89: CDHL | G89: CEG | H89: ABDF | I89: BE | J89: AC | K89: CDF | L89: BD | M89: AD | N89: EFH | O89: AEJO | P89: CDIK | Q89: 84
A90: AEG-P031 | B90: Patates_Verrayes | C90: CHE | D90: n | E90: BF | F90: CDHM | G90: CDE | H90: AB | I90: BE | J90: ABC | K90: DG | L90: BD | M90: A | N90: CEFH | O90: EIOP | P90: ACI | Q90: 85
A91: AEG-10789 | B91: Krepysh | C91: DEU | D91: n | E91: BF | F91: CDL | G91: C | H91: ABD | I91: E | J91: ABC | K91: G | L91: BC | M91: AD | N91: EH | O91: BIP | P91: CDI | Q91: 86
A92: AEG-0095 | B92: Leksandsvit | C92: SWE | D92: n | E92: BF | F92: CDLM | G92: CD | H92: ABD | I92: BEG | J92: ACE | K92: DG | L92: B | M92: ABCD | N92: EFH | O92: EIOP | P92: ACDI | Q92: 87
A93: AEG-0093 | B93: Lange_Røde | C93: SWE | D93: n | E93: BF | F93: CDM | G93: CDG | H93: ADF | I93: BE | J93: AB | K93: CDG | L93: BD | M93: ABCD | N93: DEFH | O93: AJMP | P93: ACGK | Q93: 88
A94: AEG-11447 | B94: Fluke | C94: DEU | D94: n | E94: BF | F94: CGHL | G94: CEG | H94: BD | I94: BE | J94: AE | K94: G | L94: BDF | M94: A | N94: CEF | O94: BIOP | P94: CDFI | Q94: 89
A95: DAFF-C-146 | B95: Tecka | C95: IRL | E95: BF | G95: CE | I95: E | J95: AC | K95: FG | L95: BD | M95: ABD | N95: DEF | O95: IJ | P95: CDF | Q95: 90 | R95: 1016 & 2005 missing | S95: 1
A96: AEG-10452 | B96: Wekaragis | C96: DEU | D96: n | E96: BF | F96: CGL | G96: CE | H96: ABD | I96: E | J96: AC | K96: FG | L96: BD | M96: ABD | N96: DEF | O96: IJ | P96: CDF | Q96: 90 | S96: 1
A97: AEG-P008 | B97: Safier | C97: CHE | D97: n | E97: BF | F97: CGM | G97: CD | H97: AB | I97: BEG | J97: ABCE | K97: BCF | L97: BD | M97: AB | N97: EF | O97: BJO | P97: ACF | Q97: 91
A98: AEG-0239 | B98: Rocks | C98: GBR | D98: n | E98: BF | F98: CHM | G98: CDEG | H98: ABDF | I98: BEG | J98: AC | K98: BDF | L98: BF | M98: A | N98: DEFH | O98: IMOP | P98: ABCI | Q98: 92
A99: AEG-0065 | B99: Rouge_de_Flandre | C99: FRA | D99: n | E99: BF | F99: D | G99: CDG | H99: DF | I99: E | J99: C | L99: BCD | M99: AD | N99: DF | O99: ABJ | P99: IK | Q99: 93 | R99: 3009 missing
A100: AEG-0101 | B100: Röda_Krokar | C100: SWE | D100: n | E100: BF | F100: D | G100: CG | H100: DF | I100: BE | J100: A | L100: BC | M100: A | N100: CFH | O100: EJ | P100: GIK | Q100: 94 | R100: 3009 missing
A101: AEG-10900 | B101: Ora | C101: DEU | D101: n | E101: BF | F101: DEGL | G101: CE | H101: ABD | I101: BEG | J101: ACE | K101: BG | L101: BDF | M101: AB | N101: CEF | O101: BO | P101: DFIL | Q101: 95
A102: AEG-0181 | B102: Foxton | C102: GBR | D102: n | E102: BF | F102: DF | G102: CEG | H102: ABDF | I102: BE | J102: AB | K102: DF | L102: BD | M102: ABCD | N102: CFH | O102: BGJO | P102: EI | Q102: 96
A103: AEG-10805 | B103: Aranyalma | C103: DEU | D103: n | E103: BF | F103: DG | G103: CDEG | H103: AB | I103: BE | J103: AC | K103: BFG | L103: BCF | M103: AD | N103: EF | O103: BIO | P103: FI | Q103: 97
A104: AEG-10384 | B104: Pepo_(1991) | C104: DEU | D104: n | E104: BF | F104: DG | G104: CE | H104: AB | I104: BEG | J104: ACI | K104: BF | L104: BC | M104: AD | N104: FH | O104: BJO | P104: FI | Q104: 98
A105: AEG-0162 | B105: Prizetaker | C105: GBR | D105: n | E105: BF | F105: DGHL | G105: CE | H105: ABDF | I105: BE | J105: AC | K105: G | L105: BF | M105: ABD | N105: EFH | O105: BIJ | P105: DFI | Q105: 99
A106: AEG-10035 | B106: King_Edward | C106: DEU | D106: y | E106: BF | F106: DGHL | G106: CE | H106: ADF | I106: BE | J106: A | K106: B | L106: BF | M106: A | N106: EF | O106: EIJP | P106: BDFI | Q106: 100
A107: AEG-10623 | B107: Hurnalda | C107: DEU | D107: n | E107: BF | F107: DGK | G107: C | H107: ABD | I107: E | J107: A | K107: FG | L107: BCD | M107: AD | N107: F | O107: ABIO | P107: FGIL | Q107: 101
A108: 13/615 | B108: Pentland_Meteor | C108: GBR | D108: n | E108: BF | F108: DGL | G108: BC | H108: AD | I108: BE | J108: AC | K108: G | L108: B | M108: ABD | N108: FH | O108: JM | P108: DFI | Q108: 102
A109: AEG-S033 | B109: Erdgold | C109: CHE | D109: n | E109: BF | F109: DGL | G109: C | H109: AD | I109: E | J109: AC | K109: BFG | L109: BCF | M109: AD | N109: EF | O109: IJO | P109: DFI | Q109: 103
A110: AEG-10512 | B110: Erdmanna | C110: DEU | D110: n | E110: BF | F110: DGL | G110: C | H110: BD | I110: E | J110: AC | K110: F | L110: BF | M110: ABD | N110: EF | O110: BO | P110: DFI | Q110: 104
A111: AEG-10454 | B111: Terena | C111: DEU | D111: n | E111: BF | F111: DGL | G111: C | H111: BD | I111: E | J111: ACE | K111: BF | L111: CF | M111: AD | N111: EF | O111: AO | P111: DFI | Q111: 105
A112: DAFF-C-112 | B112: Realto_(White) | C112: IRL | E112: BF | F112: DGL | G112: C | H112: BDF | I112: E | J112: ACD | K112: BG | L112: BD | M112: D | N112: CEFH | O112: BJO | P112: DFI | Q112: 106
A113: AEG-10775-1 | B113: Atlas_(1960) | C113: DEU | D113: n | E113: BF | F113: DGL | G113: CE | H113: ABD | I113: BE | J113: AB | K113: FG | L113: BCF | M113: AD | N113: EFH | O113: BIJP | P113: DFI | Q113: 107 | S113: 1
A114: AEG-10775-2 | B114: Atlas_(1960) | C114: DEU | D114: n | E114: BF | F114: DGL | G114: CE | H114: ABD | I114: BE | J114: AB | K114: FG | L114: BCF | M114: AD | N114: EFH | O114: BIJP | P114: DFI | Q114: 107 | S114: 1
A115: AEG-0001 | B115: Epoka | C115: UKR | D115: n | E115: BF | F115: DGL | G115: CE | H115: ABD | I115: BEG | J115: AC | K115: FG | L115: BCF | M115: AD | N115: EFH | O115: JO | P115: DFG | Q115: 108
A116: AEG-0004 | B116: Ukrainskij_Rozovyi | C116: UKR | D116: n | E116: BF | F116: DGL | G116: CE | H116: ABD | I116: E | J116: AC | K116: FG | L116: B | M116: BD | N116: DF | O116: BJO | P116: DFI | Q116: 109
A117: 08/062 | B117: Centrifolia | C117: GBR | D117: n | E117: BF | F117: DGL | G117: CE | H117: ABD | I117: E | J117: AC | K117: FG | L117: BC | M117: AD | N117: CEF | O117: BIJ | P117: DFI | Q117: 110 | S117: 1
A118: AEG-P067 | B118: Rosafolia | C118: CHE | D118: n | E118: BF | F118: DGL | G118: CE | H118: ABD | I118: E | J118: AC | K118: FG | L118: BC | M118: AD | N118: CEF | O118: BIJ | P118: DFI | Q118: 110 | S118: 1
A119: AEG-0227 | B119: Dunbar_Cavalier | C119: GBR | D119: n | E119: BF | F119: DGL | G119: CE | H119: BF | I119: BE | J119: C | K119: G | L119: B | M119: ABD | N119: DEF | O119: IJP | P119: DFI | Q119: 111
A120: AEG-0064 | B120: Régale | C120: FRA | D120: n | E120: BF | F120: DGL | G120: CG | H120: BDF | I120: E | J120: AC | L120: BCF | M120: AD | N120: FH | O120: JMO | P120: DFI | Q120: 112 | R120: 3009 missing
A121: AEG-10783 | B121: Ardeal | C121: DEU | D121: n | E121: BF | F121: DGLM | G121: CD | H121: BDF | I121: E | J121: AC | K121: F | L121: BC | M121: BD | N121: EF | O121: BJO | P121: ADFI | Q121: 113
A122: AEG-0015 | B122: Boroviny | C122: CZE | D122: n | E122: BF | F122: DGLM | G122: CDE | H122: BD | I122: E | J122: ABC | K122: FG | L122: B | M122: AD | N122: EF | O122: JO | P122: ADFI | Q122: 114
A123: AEG-10902 | B123: Amsel | C123: DEU | D123: n | E123: BF | F123: DGLM | G123: CE | H123: ABD | I123: E | J123: AC | K123: FG | L123: BDF | M123: AD | N123: CF | O123: BJ | P123: DFG | Q123: 115
A124: AEG-0225 | B124: Doon_Eire | C124: GBR | D124: n | E124: BF | F124: DGM | G124: CE | H124: ABD | I124: E | J124: BC | K124: BG | L124: BC | M124: AD | N124: EFH | O124: JP | P124: AFI | Q124: 116
A125: AEG-0059 | B125: Mireille | C125: FRA | D125: n | E125: BF | F125: DH | G125: C | H125: ADF | I125: E | J125: ABC | K125: FG | L125: BC | M125: AD | N125: EF | O125: BEJP | P125: BI | Q125: 117
A126: AEG-0143 | B126: Bonnie_Dundee | C126: GBR | D126: n | E126: BF | F126: DH | G126: CDG | H126: BDF | I126: BE | J126: AC | K126: G | L126: B | M126: AB | N126: CEF | O126: ABJM | P126: GI | Q126: 118
A127: AEG-12660 | B127: Zeeuwse_Blauwe | C127: DEU | D127: n | E127: BF | F127: DH | G127: CEG | H127: DF | I127: E | J127: ACE | K127: DF | L127: BF | M127: ABCD | N127: EFH | O127: AEIP | P127: GIK | Q127: 119
A128: UK-0547 | B128: BF15 | C128: GBR | D128: y | E128: BF | F128: DH | G128: CG | H128: BDF | I128: E | J128: AC | L128: BCF | M128: AD | N128: DFH | O128: EJM | P128: BGI | Q128: 120 | R128: 3009 missing
A129: AEG-0154 | B129: Edgecote_Purple | C129: GBR | D129: n | E129: BF | F129: DH | G129: CG | H129: F | I129: BE | J129: A | L129: BD | M129: ACD | N129: FH | O129: BJ | P129: BGI | Q129: 121 | R129: 3009 missing
A130: AEG-0205 | B130: Raeburn_Gregor_Cups | C130: GBR | D130: n | E130: BF | F130: DHL | G130: CE | H130: ADF | I130: BE | J130: ACE | K130: CF | L130: BD | M130: AB | N130: DEF | O130: ABEI | P130: DGI | Q130: 122
A131: AEG-12159 | B131: Munstersen | C131: DEU | D131: n | E131: BF | F131: DHL | G131: CE | H131: ADF | I131: BE | J131: ACE | K131: DG | L131: BDG | M131: A | N131: CDE | O131: AIJM | P131: DI | Q131: 123
A132: AEG-10333 | B132: Isolde | C132: DEU | D132: n | E132: BF | F132: DHL | G132: CE | H132: BDF | I132: BE | J132: ABC | K132: BFG | L132: BF | M132: A | N132: DEFH | O132: IJO | P132: DI | Q132: 124
A133: 07/528 | B133: Dunbar_Yeoman | C133: GBR | D133: n | E133: BF | F133: DHL | G133: CE | H133: BDF | I133: BE | J133: AC | K133: G | L133: BC | M133: AB | N133: EF | O133: BJO | P133: DI | Q133: 125
A134: AEG-P002 | B134: Blaugelbe_Stein | C134: CHE | D134: n | E134: BF | F134: DHL | G134: CE | H134: BDF | I134: BEG | J134: ABE | K134: BG | L134: BD | M134: AD | N134: EF | O134: ABEI | P134: DI | Q134: 126
A135: AEG-0235 | B135: Maud_Meg | C135: GBR | D135: n | E135: BF | F135: DHL | G135: CEG | H135: ADF | I135: BE | J135: AB | K135: BF | L135: BF | M135: A | N135: EFH | O135: BEM | P135: DI | Q135: 127
A136: AEG-10486 | B136: Margot | C136: DEU | D136: n | E136: BF | F136: DKL | G136: CE | H136: ABD | I136: E | J136: AC | K136: FG | L136: BCF | M136: AD | N136: CEF | O136: BO | P136: DIL | Q136: 128
A137: AEG-0047 | B137: Belle_de_Locronan | C137: FRA | D137: n | E137: BF | F137: DL | G137: C | H137: ABD | I137: E | J137: AC | K137: BFG | L137: BC | M137: AD | N137: EF | O137: BIJ | P137: DI | Q137: 129
A138: AEG-0016 | B138: Cornelia | C138: CZE | D138: n | E138: BF | F138: DL | G138: C | H138: AD | I138: E | J138: AC | K138: FG | L138: BC | M138: AD | N138: FH | O138: JO | P138: DGI | Q138: 130
A139: AEG-10500 | B139: Hessenkrone | C139: DEU | D139: n | E139: BF | F139: DL | G139: CE | H139: AB | I139: E | J139: AC | K139: BFG | L139: BDF | M139: AD | N139: EF | O139: BJO | P139: DG | Q139: 131
A140: DAFF-J-054 | B140: Reina | C140: IRL | E140: BF | F140: DL | G140: CE | H140: ABF | I140: E | J140: ABC | K140: FG | L140: B | M140: AD | N140: EFH | O140: IO | P140: DI | Q140: 132
A141: AEG-0031 | B141: Merkur | C141: CZE | D141: y | E141: BF | F141: DL | G141: CE | H141: AD | I141: E | J141: ABE | K141: FG | L141: BDF | M141: D | N141: EF | O141: BIJP | P141: DI | Q141: 133
A142: AEG-0244 | B142: Old_Long_Red | C142: GBR | D142: n | E142: BF | F142: DL | G142: CG | H142: DF | I142: BE | J142: A | K142: F | L142: B | M142: A | N142: CF | O142: BJO | P142: DK | Q142: 134
A143: AEG-10552 | B143: Zeeburger | C143: DEU | D143: n | E143: BF | F143: DLM | G143: C | H143: ABD | I143: E | J143: BC | K143: FG | L143: BC | M143: AD | N143: CDEF | O143: BJO | P143: ADI | Q143: 135
A144: DAFF-J-114 | B144: Pentland_Ace | C144: IRL | E144: BF | F144: DLM | G144: CG | H144: ABD | I144: BE | J144: ACG | K144: FG | L144: B | M144: ABD | N144: CEFH | O144: IJP | P144: ADI | Q144: 136
A145: AEG-0240 | B145: Robijn | C145: GBR | D145: n | E145: BF | F145: DM | G145: CD | H145: ABDF | I145: E | J145: ABC | K145: FG | L145: BC | M145: ABD | N145: DEF | O145: BJO | P145: AI | Q145: 137 | S145: 2
A146: AEG-P028 | B146: Lauterbrunnen | C146: CHE | D146: n | E146: BF | F146: DM | G146: CD | H146: ABDF | I146: E | J146: ABC | K146: FG | L146: BC | M146: ABD | N146: DEF | O146: BJO | P146: AI | Q146: 137 | S146: 2
A147: AEG-10606 | B147: Robijn | C147: DEU | D147: n | E147: BF | F147: DM | G147: CD | H147: ABDF | I147: E | J147: ABC | K147: FG | L147: BC | M147: ABD | N147: DEF | O147: BJO | P147: AI | Q147: 137 | S147: 2
A148: AEG-0231 | B148: Kingston | C148: GBR | D148: y | E148: BF | F148: FL | G148: CEG | H148: BDF | I148: E | J148: AC | K148: FG | L148: BD | M148: ABC | N148: CEFH | O148: J | P148: ADE | Q148: 138
A149: AEG-10473 | B149: Nederlander | C149: DEU | D149: n | E149: BF | F149: GL | G149: C | H149: B | I149: E | J149: A | K149: FG | L149: BF | M149: D | N149: CEFH | O149: BJO | P149: DF | Q149: 139
A150: AEG-0097 | B150: Prestkværn | C150: SWE | D150: n | E150: BF | F150: GL | G150: CD | H150: ABD | I150: E | J150: AC | K150: BF | L150: BC | M150: ABD | N150: CEF | O150: IJO | P150: ADF | Q150: 140
A151: AEG-10018 | B151: Parnassia | C151: DEU | D151: n | E151: BF | F151: GL | G151: CE | H151: BD | I151: E | J151: AC | K151: FG | L151: BCD | M151: AD | N151: CEF | O151: IJ | P151: DF | Q151: 141
A152: AEG-0049 | B152: Bonnotte_Noirmoutier | C152: FRA | D152: n | E152: BF | F152: GLM | G152: CE | H152: AF | I152: E | J152: AC | L152: BD | M152: AD | N152: CEF | O152: BEJ | P152: BI | Q152: 142 | R152: 3009 missing
A153: AEG-0068 | B153: Claudia | C153: FRA | D153: n | E153: BF | F153: GLM | G153: CE | H153: BDF | I153: BE | J153: AC | K153: FG | L153: BF | M153: ABD | N153: DEF | O153: BIJ | P153: ADF | Q153: 143
A154: UK-0830 | B154: Ulster_Sceptre | C154: GBR | D154: y | E154: BF | F154: LM | G154: CG | H154: ABD | I154: BE | J154: ACG | K154: FG | L154: BC | M154: AB | N154: EFH | O154: IJP | P154: AD | Q154: 144
A155: 13/620 | B155: Pentland_Marble | C155: GBR | D155: n | E155: BFG | F155: CDG | G155: BCE | H155: ABF | I155: BEG | J155: AC | K155: BG | L155: B | M155: BD | N155: CEI | O155: INOP | P155: FIL | Q155: 145
A156: AEG-0100 | B156: Rättviks_Röd | C156: SWE | D156: n | E156: BFG | F156: CDHL | G156: CE | H156: ADF | I156: BE | J156: ABC | K156: FG | L156: BF | M156: ACD | N156: DFH | O156: ABEO | P156: CDI | Q156: 146
A157: AEG-0174 | B157: Sieglinde | C157: GBR | D157: y | E157: BFG | F157: CDL | G157: C | H157: BDF | I157: BE | J157: BCE | K157: BCF | L157: BCF | M157: A | N157: EFH | O157: EIO | P157: CDI | Q157: 147
A158: UK-0567 | B158: Catriona | C158: GBR | D158: y | E158: BFG | F158: D | G158: CE | H158: BDF | I158: BE | J158: AC | K158: G | L158: BD | M158: AD | N158: CFH | O158: BJMO | P158: GI | Q158: 148
A159: AEG-10568 | B159: Iduna | C159: DEU | D159: n | E159: BFG | F159: DFL | G159: BC | H159: ABDF | I159: BE | J159: AB | K159: BF | L159: B | M159: ABD | N159: CEH | O159: GIJP | P159: DEI | Q159: 149
A160: AEG-10497 | B160: Gunda_(1960) | C160: DEU | D160: y | E160: BFG | F160: DG | G160: CDE | H160: ABD | I160: BE | J160: ACD | K160: FG | L160: BF | M160: A | N160: CEF | O160: FJO | P160: FGI | Q160: 150
A161: AEG-12253 | B161: Altösterreicher | C161: DEU | D161: n | E161: BFG | F161: DGH | G161: CE | H161: ABD | I161: BE | J161: ABC | K161: BG | L161: BF | M161: AD | N161: CEH | O161: IOP | P161: FI | Q161: 151
A162: 07/513 | B162: Arran_Comrade | C162: GBR | D162: n | E162: BFG | F162: DGL | G162: CE | H162: AB | I162: E | J162: AC | K162: BG | L162: BCF | M162: A | N162: EF | O162: IJO | P162: DFI | Q162: 152
A163: AEG-P021 | B163: Frühkartoffel_Prättigau | C163: CHE | D163: n | E163: BFG | F163: DGL | G163: CE | H163: ABD | I163: BE | J163: AC | K163: FG | L163: B | M163: AD | N163: EFH | O163: IOPQ | P163: DFI | Q163: 153
A164: AEG-11270 | B164: Arvor | C164: DEU | D164: n | E164: BFG | F164: DGL | G164: CE | H164: BDF | I164: BE | J164: AC | K164: G | L164: BDF | M164: ABD | N164: F | O164: ABOP | P164: DFGI | Q164: 154
A165: AEG-0214 | B165: Arran_Peak | C165: GBR | D165: n | E165: BFG | F165: DGL | G165: CE | H165: BF | I165: BE | J165: A | K165: BG | L165: B | M165: ABD | N165: DEF | O165: IJO | P165: DFI | Q165: 155
A166: AEG-10588 | B166: Immertreu | C166: DEU | D166: n | E166: BFG | F166: DGLM | G166: CE | H166: ABD | I166: E | J166: ABC | K166: BFG | L166: BCD | M166: ABD | N166: FH | O166: BJO | P166: ADFI | Q166: 156
A167: AEG-Q005 | B167: Lumbrein | C167: CHE | D167: n | E167: BFG | F167: DGLM | G167: CE | H167: ABD | I167: E | J167: AC | K167: FG | L167: BC | M167: AD | N167: EFH | O167: BIJ | P167: ADFI | Q167: 157
A168: AEG-10426 | B168: Pierwiosnek | C168: DEU | D168: n | E168: BFG | F168: DGM | G168: CDEG | H168: BDF | I168: E | J168: ABC | K168: FG | L168: BCD | M168: AD | N168: DEH | O168: JOP | P168: AFK | Q168: 158
A169: AEG-0061 | B169: Nova | C169: FRA | D169: n | E169: BFG | F169: DGM | G169: CE | H169: ABD | I169: E | J169: AC | K169: G | L169: CDF | M169: AD | N169: EF | O169: JO | P169: AFI | Q169: 159
A170: AEG-0168 | B170: Lord_Roseberry | C170: GBR | D170: n | E170: BFG | F170: DH | G170: CEG | H170: DF | I170: BEG | J170: A | K170: B | L170: BF | M170: A | N170: FH | O170: EIJM | P170: GI | Q170: 160
A171: AEG-0218 | B171: Buchan_Beauty | C171: GBR | D171: n | E171: BFG | F171: DHKL | G171: CE | H171: ABDF | I171: BE | J171: AC | K171: BFG | L171: BF | M171: AD | N171: EF | O171: ABO | P171: DIL | Q171: 161
A172: AEG-0224 | B172: Dominion | C172: GBR | D172: n | E172: BFG | F172: DHL | G172: C | H172: BF | I172: E | J172: A | K172: BF | L172: BDF | M172: ABD | N172: CEF | O172: IJ | P172: BDGI | Q172: 162
A173: AEG-0217 | B173: Adams_Apple | C173: GBR | D173: n | E173: BFG | F173: DHL | G173: CEG | H173: DF | I173: BE | J173: AB | K173: BG | L173: BF | M173: A | N173: CFH | O173: BEIJ | P173: DGI | Q173: 163
A174: AEG-0099 | B174: Raudar_Islenskar_(Gammal_svensk_röd) | C174: SWE | D174: n | E174: BFG | F174: DHM | G174: CDE | H174: ABF | I174: E | J174: ACE | K174: DG | L174: BDF | M174: AD | N174: EF | O174: AEI | P174: AGI | Q174: 164
A175: AEG-10655 | B175: Königsniere | C175: DEU | D175: n | E175: BFG | F175: DL | G175: C | H175: ABD | I175: E | J175: AC | K175: F | L175: BCD | M175: AD | N175: EF | O175: AEO | P175: DGI | Q175: 165
A176: AEG-10603 | B176: Paul_Krüger | C176: DEU | D176: n | E176: BFG | F176: DL | G176: CD | H176: ABD | I176: BEG | J176: AC | K176: FG | L176: BD | M176: ABD | N176: EFH | O176: IJO | P176: DI | Q176: 166
A177: AEG-0173 | B177: Shetland_Black | C177: GBR | D177: n | E177: BFG | F177: DL | G177: CD | H177: DF | I177: BE | J177: AC | K177: B | L177: BDF | M177: AB | N177: DEF | O177: AJMP | P177: DI | Q177: 167
A178: AEG-0216 | B178: Alpha | C178: GBR | D178: y | E178: BFG | F178: DL | G178: CE | H178: AD | I178: BEG | J178: ABC | K178: FG | L178: BCD | M178: ABD | N178: EF | O178: IJO | P178: ADI | Q178: 168
A179: AEG-0167 | B179: Maris_Page | C179: GBR | D179: n | E179: BFG | F179: DL | G179: CEG | H179: BD | I179: E | J179: AC | K179: G | L179: B | M179: A | N179: EFH | O179: JOP | P179: DI | Q179: 169
A180: AEG-0188 | B180: Ulster_Sovereign | C180: GBR | D180: n | E180: BFG | F180: DL | G180: CEG | H180: BDF | I180: E | J180: A | K180: BG | L180: B | M180: ABD | N180: EF | O180: JP | P180: DIK | Q180: 170
A181: UK-0829 | B181: Ulster_Prince | C181: GBR | D181: y | E181: BFG | F181: DL | G181: CG | H181: ABDF | I181: E | J181: A | K181: BG | L181: BCD | M181: BD | N181: DEF | O181: JOP | P181: DI | Q181: 171
A182: 06/195 | B182: Tayside | C182: GBR | D182: n | E182: BFG | F182: DL | G182: CG | H182: ABF | I182: E | J182: A | K182: BG | L182: BC | M182: BD | N182: E | O182: JOP | P182: DI | Q182: 172
A183: AEG-10453 | B183: Feldedlohn | C183: DEU | D183: n | E183: BFG | F183: DLM | G183: CDE | H183: ABD | I183: E | J183: ABC | K183: F | L183: BCD | M183: AD | N183: F | O183: AJO | P183: ADG | Q183: 173
A184: AEG-10288 | B184: Gratiola | C184: DEU | D184: n | E184: BFG | F184: GLM | G184: CDE | H184: AD | I184: E | J184: ABC | K184: BFG | L184: BF | M184: BD | N184: EF | O184: JO | P184: ADF | Q184: 174
A185: AEG-0195 | B185: Sheriff | C185: GBR | D185: n | E185: BFG | F185: GLM | G185: CEG | H185: AB | I185: E | J185: AC | K185: FG | L185: B | M185: AB | N185: CEFH | O185: IJ | P185: ADF | Q185: 175
A186: DAFF-09-039 | B186: Remona | C186: IRL | E186: BFH | F186: DG | G186: C | H186: ABD | I186: BEG | J186: AC | K186: FG | L186: B | M186: AD | N186: EF | O186: JN | P186: FGI | Q186: 176
A187: 13/619 | B187: Crusader | C187: GBR | D187: n | E187: BG | F187: CDGL | G187: CE | H187: ADF | I187: BE | J187: AE | K187: BF | L187: BF | M187: A | N187: EF | O187: BJO | P187: CDFI | Q187: 177
A188: AEG-0202 | B188: Roslin_Mount_Kenya | C188: GBR | D188: n | E188: BG | F188: CDH | G188: C | H188: AB | I188: BEG | J188: C | K188: G | L188: BC | M188: AD | N188: EF | O188: FIJP | P188: IL | Q188: 178
A189: AEG-0007 | B189: Ambra | C189: CZE | D189: y | E189: BG | F189: CDH | G189: CE | H189: BD | I189: BE | J189: A | K189: BDF | L189: BF | M189: ABD | N189: EFH | O189: IJOP | P189: CI | Q189: 179
A190: AEG-0010 | B190: Athene | C190: CZE | D190: n | E190: BG | F190: CDL | G190: CE | H190: AB | I190: E | J190: AC | K190: FG | L190: B | M190: AD | N190: EF | O190: BIO | P190: CDI | Q190: 180
A191: AEG-10564 | B191: Furore | C191: DEU | D191: n | E191: BG | F191: CDM | G191: CEG | H191: AD | I191: BEG | J191: AB | K191: FG | L191: BC | M191: AD | N191: EF | O191: BJO | P191: ACI | Q191: 181
A192: AEG-0215 | B192: Arran_Cairn | C192: GBR | D192: n | E192: BG | F192: CLM | G192: CG | H192: BD | I192: BE | J192: ABC | K192: BG | L192: BCD | M192: A | N192: CFH | O192: JO | P192: ACD | Q192: 182 | S192: 1
A193: AEG-11264 | B193: Arran_Cairn | C193: DEU | D193: n | E193: BG | F193: CLM | G193: CG | H193: BD | I193: BE | J193: ABC | K193: BG | L193: BCD | M193: A | N193: CFH | O193: JO | P193: ACD | Q193: 182 | S193: 1
A194: AEG-0012 | B194: Beta | C194: CZE | D194: n | E194: BG | F194: DEL | G194: CE | H194: B | I194: BEG | J194: ACE | K194: FG | L194: BF | M194: ABD | N194: EF | O194: BJO | P194: DIL | Q194: 183
A195: AEG-10437 | B195: Regent_(NLD) | C195: DEU | D195: n | E195: BG | F195: DG | G195: C | H195: ABD | I195: BEG | J195: AC | K195: DFG | L195: B | M195: AD | N195: EF | O195: EIJN | P195: FI | Q195: 184 | S195: 1
A196: AEG-0037 | B196: Regent | C196: CZE | D196: n | E196: BG | F196: DG | G196: C | H196: ABD | I196: BEG | J196: AC | K196: DFG | L196: B | M196: AD | N196: EF | O196: EIJN | P196: FI | Q196: 184 | S196: 1
A197: AEG-10679 | B197: Fink | C197: DEU | D197: n | E197: BG | F197: DG | G197: CE | H197: AB | I197: BE | J197: ABC | K197: FG | L197: BCF | M197: A | N197: CEF | O197: JNO | P197: FI | Q197: 185
A198: AEG-0006 | B198: Alma | C198: CZE | D198: n | E198: BG | F198: DGHL | G198: CE | H198: AB | I198: E | J198: ACE | K198: FG | L198: B | M198: AD | N198: EFH | O198: BO | P198: DFI | Q198: 186
A199: AEG-0002 | B199: Kalev | C199: UKR | D199: n | E199: BG | F199: DGL | G199: CD | H199: AD | I199: E | J199: ABC | K199: F | L199: BD | M199: AD | N199: EF | O199: BJP | P199: DFIK | Q199: 187
A200: AEG-10273 | B200: Cucullus | C200: DEU | D200: n | E200: BG | F200: DGL | G200: CE | H200: ABD | I200: E | J200: AC | K200: F | L200: BC | M200: AD | N200: DEF | O200: BIJ | P200: DFI | Q200: 188
... 234 more rows

Sheet Matching_clones
A1: Key | B1: Variety denomination | C1: sample | D1: profile | E1: Common catalogue
A2: AEG-10381 | B2: Flaminia | C2: DEU | D2: 12 | E2: n
A3: AEG-0056 | B3: Flaminia | C3: FRA | D3: 12 | E3: n
A4: AEG-0033 | B4: Monika | C4: CZE | D4: 50 | E4: n
A5: AEG-0034 | B5: Monika | C5: CZE | D5: 50 | E5: n
A6: AEG-12139 | B6: Adelheid | C6: DEU | D6: 67 | E6: n
A7: AEG-10522 | B7: Oberambacher_Adelheid | C7: DEU | D7: 67 | E7: n
A8: 06/308 | B8: Aura | C8: GBR | D8: 80 | E8: n
A9: AEG-0046 | B9: Aura | C9: FRA | D9: 80 | E9: n
A10: DAFF-C-146 | B10: Tecka | C10: IRL | D10: 90
A11: AEG-10452 | B11: Wekaragis | C11: DEU | D11: 90 | E11: n
A12: AEG-10775-1 | B12: Atlas_(1960) | C12: DEU | D12: 107 | E12: n
A13: AEG-10775-2 | B13: Atlas_(1960) | C13: DEU | D13: 107 | E13: n
A14: 08/062 | B14: Centrifolia | C14: GBR | D14: 110 | E14: n
A15: AEG-P067 | B15: Rosafolia | C15: CHE | D15: 110 | E15: n
A16: AEG-0215 | B16: Arran_Cairn | C16: GBR | D16: 182 | E16: n
A17: AEG-11264 | B17: Arran_Cairn | C17: DEU | D17: 182 | E17: n
A18: AEG-10437 | B18: Regent_(NLD) | C18: DEU | D18: 184 | E18: n
A19: AEG-0037 | B19: Regent | C19: CZE | D19: 184 | E19: n
A20: 13/613 | B20: Early_Rose | C20: GBR | D20: 214 | E20: n
A21: 13/616 | B21: Puritan | C21: GBR | D21: 214 | E21: n
A22: AEG-P017 | B22: Blaue_Schweden | C22: CHE | D22: 238 | E22: n
A23: AEG-0080 | B23: Congo | C23: SWE | D23: 238 | E23: n
A24: AEG-12436 | B24: Orion_(Schots) | C24: DEU | D24: 247 | E24: n
A25: AEG-0192 | B25: Orion | C25: GBR | D25: 247 | E25: n
A26: AEG-11462 | B26: Gabi_(1989) | C26: DEU | D26: 252 | E26: n
A27: AEG-0021 | B27: Gabi | C27: CZE | D27: 252 | E27: n
A28: AEG-P062 | B28: Allerfrüheste_Gelbe | C28: CHE | D28: 267 | E28: y
A29: DAFF-T-047 | B29: Prevalent | C29: IRL | D29: 267
A30: AEG-0019 | B30: Fortuna | C30: CZE | D30: 269 | E30: n
A31: AEG-0072 | B31: Morgane_1985 | C31: FRA | D31: 269 | E31: n
A32: AEG-10784 | B32: Anna_(1947) | C32: DEU | D32: 289 | E32: n
A33: AEG-0008 | B33: Anna | C33: CZE | D33: 289 | E33: n
A34: AEG-0172 | B34: Shetland | C34: GBR | D34: 301 | E34: n
A35: AEG-0238 | B35: Ryecroft_Purple | C35: GBR | D35: 301 | E35: n
A36: DAFF-J-061 | B36: Tinwald | C36: IRL | D36: 326
A37: AEG-0196 | B37: Tinwald_Perfection | C37: GBR | D37: 326 | E37: n
A38: AEG-0107 | B38: Rödbrokig_svensk | C38: SWE | D38: 336 | E38: n
A39: AEG-0243 | B39: Peachbloom | C39: GBR | D39: 336 | E39: n
A40: 08/028 | B40: Red_Ulster_Premier | C40: GBR | D40: 356 | E40: n
A41: 08/029 | B41: Ulster_Premier | C41: GBR | D41: 356 | E41: n
A42: AEG-0211 | B42: Bishop | C42: GBR | D42: 365 | E42: n
A43: AEG-12256 | B43: Bishop | C43: DEU | D43: 365 | E43: n
A44: AEG-0170 | B44: Eigenheimer | C44: GBR | D44: 372 | E44: y
A45: AEG-P024 | B45: Tennaer | C45: CHE | D45: 372 | E45: n
A46: AEG-12145 | B46: Blauwe_Eigenheimer | C46: DEU | D46: 372 | E46: n
A47: AEG-10225 | B47: Astra_(1983) | C47: DEU | D47: 385 | E47: n
A48: AEG-0044 | B48: Astra | C48: LVA | D48: 385 | E48: n
A49: AEG-0240 | B49: Robijn | C49: GBR | D49: 137 | E49: n
A50: AEG-P028 | B50: Lauterbrunnen | C50: CHE | D50: 137 | E50: n
A51: AEG-10606 | B51: Robijn | C51: DEU | D51: 137 | E51: n
A52: AEG-10845 | B52: Flora_(1955) | C52: DEU | D52: 340 | E52: y
A53: AEG-0017 | B53: Flora | C53: CZE | D53: 340 | E53: y
A54: AEG-0018 | B54: Flora | C54: CZE | D54: 340 | E54: y
A55: AEG-0086 | B55: Karjalan_Musta | C55: SWE | D55: 359 | E55: n
A56: AEG-12037 | B56: Skerry_Blue | C56: DEU | D56: 359 | E56: n
A57: AEG-0048 | B57: Bleue_dAuvergne | C57: FRA | D57: 359 | E57: n
A58: AEG-P053 | B58: Blaue_Österreich | C58: CHE | D58: 359 | E58: n
A59: AEG-P026 | B59: Vitelotte | C59: CHE | D59: 394 | E59: n
A60: AEG-12317 | B60: Vitelotte | C60: DEU | D60: 394 | E60: n
A61: AEG-0073 | B61: Vitelotte_Noire | C61: FRA | D61: 394 | E61: n
A62: AEG-0040 | B62: Unbekannte_Schwarze | C62: CZE | D62: 394 | E62: n
A63: AEG-P025 | B63: Blaue_Veltlin | C63: CHE | D63: 394 | E63: n
A64: AEG-0209 | B64: Blue_Peter | C64: GBR | D64: 394 | E64: n
A65: DAFF-J-136 | B65: Tombola | C65: IRL | D65: 195
B66: Tuskar | C66: GBR
A67: DAFF-J-085 | B67: Arka | C67: IRL | D67: 390
B68: Red Kidney | C68: GBR

Sheet Not_matching_clones
A1: Selection of not matching clones
A3: Key | B3: Variety denomination | C3: sample | D3: 0019 | E3: 1016 | F3: 1024 | G3: 2005 | H3: 2022 | I3: 2028 | J3: 3009 | K3: 3012 | L3: 3023 | M3: 5136 | N3: 5148 | O3: SSR1 | P3: profile
A4: AEG-P073 | B4: Alma | C4: CHE | D4: BF | E4: CDGL | F4: CE | G4: AB | H4: E | I4: AC | J4: FG | K4: BD | L4: ABD | M4: DEFH | N4: BIJ | O4: CDFI | P4: 79
A5: AEG-0006 | B5: Alma | C5: CZE | D5: BG | E5: DGHL | F5: CE | G5: AB | H5: E | I5: ACE | J5: FG | K5: B | L5: AD | M5: EFH | N5: BO | O5: DFI | P5: 186
A6: AEG-12682 | B6: Alma_(?) | C6: DEU | D6: BEG | E6: DGL | F6: CE | G6: ABD | H6: BE | I6: A | J6: FG | K6: BC | L6: AD | M6: EF | N6: JOP | O6: DFI | P6: 68
A7: AEG-0009 | B7: Astra | C7: CZE | D7: F | E7: DL | F7: CEG | G7: ABD | H7: BE | I7: AB | J7: F | K7: BCF | L7: AD | M7: EFH | N7: ANP | O7: DI | P7: 304
A8: AEG-0044 | B8: Astra | C8: LVA | D8: G | E8: DG | F8: CE | G8: ABD | H8: E | I8: ABF | J8: BFG | K8: BD | L8: D | M8: AF | N8: BJOR | O8: FK | P8: 385
A9: AEG-10225 | B9: Astra_(1983) | C9: DEU | D9: G | E9: DG | F9: CE | G9: ABD | H9: E | I9: ABF | J9: BFG | K9: BD | L9: D | M9: AF | N9: BJOR | O9: FK | P9: 385
A10: AEG-0010 | B10: Athene | C10: CZE | D10: BG | E10: CDL | F10: CE | G10: AB | H10: E | I10: AC | J10: FG | K10: B | L10: AD | M10: EF | N10: BIO | O10: CDI | P10: 180
A11: AEG-10543 | B11: Athene_(1964) | C11: DEU | D11: BEG | E11: DGLM | F11: CE | G11: ABD | H11: BEG | I11: AC | J11: FG | K11: BCD | L11: AD | M11: EF | N11: JOP | O11: ADFI | P11: 70
A12: 13/613 | B12: Early_Rose | C12: GBR | D12: DF | E12: DGL | F12: CE | G12: ABD | H12: BE | I12: AC | J12: BG | K12: BCF | L12: AB | M12: EFH | N12: IJP | O12: DFI | P12: 214
A13: AEG-P035 | B13: Early_Rose | C13: CHE | D13: DG | E13: DGL | F13: CD | G13: ABD | H13: BE | I13: ACE | J13: FG | K13: BC | L13: ABD | M13: DEH | N13: BJOP | O13: DFI | P13: 244
A14: AEG-0017 | B14: Flora | C14: CZE | D14: FG | E14: DGLM | F14: CE | G14: ADF | H14: E | I14: ACD | J14: FG | K14: BC | L14: AD | M14: DFH | N14: NOPR | O14: ADFK | P14: 340
A15: AEG-0018 | B15: Flora | C15: CZE | D15: FG | E15: DGLM | F15: CE | G15: ADF | H15: E | I15: ACD | J15: FG | K15: BC | L15: AD | M15: DFH | N15: NOPR | O15: ADFK | P15: 340
A16: AEG-10837 | B16: Flora_(1939) | C16: DEU | D16: BD | E16: DG | F16: CDG | G16: ABD | H16: BE | I16: AC | J16: FG | K16: BCF | L16: AD | M16: DEF | N16: IJO | O16: FI | P16: 21
A17: AEG-10845 | B17: Flora_(1955) | C17: DEU | D17: FG | E17: DGLM | F17: CE | G17: ADF | H17: E | I17: ACD | J17: FG | K17: BC | L17: AD | M17: DFH | N17: NOPR | O17: ADFK | P17: 340
A18: AEG-0183 | B18: Iris | C18: GBR | D18: FG | E18: DHL | F18: C | G18: DF | H18: BE | I18: ABC | J18: G | K18: BDF | L18: AD | M18: EFH | N18: JO | O18: DI | P18: 349
A19: AEG-11515 | B19: Iris | C19: DEU | D19: FG | E19: L | F19: CE | G19: ABF | H19: E | I19: AC | J19: FG | K19: BF | L19: ABD | M19: CEF | N19: IJO | O19: AD | P19: 380
A20: AEG-10372 | B20: Luna_(1954) | C20: DEU | D20: BDF | E20: DGL | F20: CE | G20: B | H20: E | I20: C | J20: FGK | K20: BCF | L20: D | M20: EF | N20: NO | O20: DFI | P20: 39
A21: AEG-12669 | B21: Luna_(1998) | C21: DEU | D21: G | E21: DL | F21: CE | G21: AB | H21: E | I21: AC | J21: F | K21: BCDF | L21: AD | M21: EF | N21: EJO | O21: DI | P21: 391
A22: AEG-0060 | B22: Morgane_1955 | C22: FRA | D22: DF | E22: DM | F22: CG | G22: BD | H22: BE | I22: ABC | J22: FG | K22: BC | L22: A | M22: DEFH | N22: JMP | O22: AI | P22: 222
A23: AEG-0072 | B23: Morgane_1985 | C23: FRA | D23: F | E23: DGL | F23: C | G23: ABD | H23: E | I23: AC | J23: BFG | K23: BC | L23: D | M23: CFH | N23: JOP | O23: DFI | P23: 270
A24: AEG-0062 | B24: Orion | C24: FRA | D24: DF | E24: DHL | F24: CE | G24: B | H24: BE | I24: ACDE | J24: FG | K24: CDF | L24: D | M24: EF | N24: ABO | O24: DI | P24: 218
A25: AEG-0192 | B25: Orion | C25: GBR | D25: DGH | E25: DL | F25: C | G25: BF | H25: E | I25: AF | J25: BG | K25: B | L25: BD | M25: DF | N25: INP | O25: DI | P25: 247
A26: AEG-12436 | B26: Orion_(Schots) | C26: DEU | D26: DGH | E26: DL | F26: C | G26: BF | H26: E | I26: AF | J26: BG | K26: B | L26: BD | M26: DF | N26: INP | O26: DI | P26: 247
A27: AEG-10829 | B27: Palma_(1951) | C27: DEU | D27: BEF | E27: DG | F27: CDE | G27: ADF | H27: BEG | I27: AC | J27: FG | K27: BF | L27: AD | M27: DFH | N27: IJO | O27: FI | P27: 65
A28: AEG-11717 | B28: Palma_(1972) | C28: DEU | D28: BDF | E28: DG | F28: CE | G28: BD | H28: E | I28: AC | J28: G | K28: BCF | L28: AD | M28: EF | N28: JO | O28: FI | P28: 35
A29: AEG-10375 | B29: Petra_(1958) | C29: DEU | D29: DG | E29: DGHL | F29: CE | G29: BD | H29: BE | I29: AE | J29: DFG | K29: BDF | L29: D | M29: EFH | N29: BJO | O29: DFI | P29: 243
A30: AEG-12439 | B30: Petra_(1991) | C30: DEU | D30: F | E30: DGM | F30: CD | G30: ABD | H30: E | I30: ACD | J30: FG | K30: BC | L30: BD | M30: FH | N30: BIOS | O30: DFI | P30: 279
A31: DAFF-J-054 | B31: Reina | C31: IRL | D31: BF | E31: DL | F31: CE | G31: ABF | H31: E | I31: ABC | J31: FG | K31: B | L31: AD | M31: EFH | N31: IO | O31: DI | P31: 132
A32: DAFF-C-118 | B32: Rejina | C32: IRL | D32: F | E32: DLM | F32: CG | G32: AD | H32: E | I32: B | J32: FG | K32: BC | L32: AD | M32: CDE | N32: JO | O32: ADI | P32: 308
A33: AEG-10030 | B33: Sefton_Wonder | C33: DEU | D33: B | E33: DGL | F33: CE | G33: AB | H33: E | I33: ACE | J33: BFG | K33: B | L33: AD | M33: CEF | N33: EJOP | O33: DFI | P33: 8
A34: AEG-0200 | B34: Sefton_Wonder | C34: GBR | D34: F | E34: DH | F34: C | G34: BF | H34: BE | I34: A | J34: BFG | K34: BF | L34: AD | M34: CEF | N34: IJ | O34: I | P34: 281
A35: AEG-0172 | B35: Shetland | C35: GBR | D35: F | E35: DL | F35: C | G35: BF | H35: BEG | I35: AC | J35: BFG | K35: BF | L35: ABD | M35: CDEF | N35: IJO | O35: DI | P35: 301
A36: AEG-0173 | B36: Shetland_Black | C36: GBR | D36: BFG | E36: DL | F36: CD | G36: DF | H36: BE | I36: AC | J36: B | K36: BDF | L36: AB | M36: DEF | N36: AJMP | O36: DI | P36: 167
A37: AEG-0197 | B37: Ulster_Concord | C37: GBR | D37: F | E37: DGL | F37: C | G37: ABD | H37: E | I37: A | J37: G | K37: B | L37: ABD | M37: EF | N37: JNOP | O37: DFI | P37: 268
A38: DAFF-J-139 | B38: Ulster_Concord | C38: IRL | D38: FG | E38: DL | F38: CG | G38: BF | H38: E | I38: A | J38: BG | K38: BCDF | L38: ABD | M38: EH | N38: JOP | O38: DI | P38: 367
B39: Matches UK and Ireland Ulster Dale and Ulster Glade (Teagasc)
A40: DAFF-J-135 | B40: Thynia | C40: IRL | D40: DG | E40: DGH | F40: CE | G40: ABD | H40: BE | I40: AC | J40: G | K40: BC | L40: ABD | M40: EFH | N40: BIJ | O40: FI | P40: 242
B41: Does not match UK Thynia
A42: DAFF-J-134 | B42: The_Baron | C42: IRL | D42: FG | E42: DG | F42: CE | G42: AB | H42: E | I42: ACD | J42: FG | K42: BC | L42: D | M42: CEFH | N42: BEIJ | O42: FI | P42: 331
B43: Does not match UK The Baron, but UK Thynia. UK The Baron matches Millar's Beauty & Symfonia from IRL. (Another Irish sample labelled as Sprint matches Symfonia from UK & NLD.)
A45: Unexpected not matching clones
A46: Expected not matching clones
A47: Clone matching with other(s), see sheet Matching_clones

Sheet allele_freqs
A1: SSR allele frequencies of AEGIS data set and other clones in SASA's database
A3: 433 AEGIS clones
A4: allele/SSR | B4: 0019 | C4: 1016 | D4: 1024 | E4: 2005 | F4: 2022 | G4: 2028 | H4: 3009 | I4: 3012 | J4: 3023 | K4: 5136 | L4: 5148 | M4: SSR1
A5: A | B5: 0.2366863905 | C5: 0.08598452279 | D5: 0.1123595506 | E5: 23.86759582 | G5: 41.90782422 | H5: 0.7125890736 | I5: 0.7692307692 | J5: 40.38054968 | K5: 0.1676445935 | L5: 3.978576894 | M5: 7.771135781
A6: B | B6: 25.32544379 | D6: 1.235955056 | E6: 29.3554007 | F6: 30.69705094 | G6: 12.86173633 | H6: 19.71496437 | I6: 46.92307692 | J6: 20.61310782 | L6: 12.24177506 | M6: 1.793339026
A7: C | B7: 0.1183431953 | C7: 6.104901118 | D7: 48.53932584 | G7: 34.40514469 | H7: 2.019002375 | I7: 17.47252747 | J7: 2.748414376 | K7: 10.81307628 | L7: 0.4590665647 | M7: 6.148590948
A8: D | B8: 9.585798817 | C8: 30.52450559 | D8: 8.202247191 | E8: 27.87456446 | F8: 0.2680965147 | G8: 1.500535906 | H8: 4.631828979 | I8: 12.52747253 | J8: 36.25792812 | K8: 11.65129925 | M8: 26.7292912
A9: E | B9: 3.431952663 | C9: 1.117798796 | D9: 31.57303371 | F9: 57.90884718 | G9: 6.752411576 | I9: 0.1098901099 | K9: 29.42162615 | L9: 3.213465953 | M9: 0.4269854825
A10: F | B10: 35.97633136 | C10: 0.3439380911 | E10: 18.90243902 | G10: 1.822079314 | H10: 32.18527316 | I10: 21.64835165 | K10: 31.85247276 | L10: 0.4590665647 | M10: 17.59180188
A11: G | B11: 24.37869822 | C11: 17.79879622 | D11: 10.33707865 | F11: 11.12600536 | G11: 0.5359056806 | H11: 40.14251781 | I11: 0.5494505495 | L11: 1.147666412 | M11: 4.526046114
A12: H | B12: 0.9467455621 | C12: 9.286328461 | H12: 0.2375296912 | K12: 16.01005868
A13: I | G13: 0.2143622722 | K13: 0.08382229673 | L13: 17.59755164 | M13: 31.16994022
A14: J | C14: 0.08598452279 | L14: 26.09028309 | M14: 0.2561912895
A15: K | C15: 0.8598452279 | H15: 0.3562945368 | M15: 1.878736123
A16: L | C16: 26.3972485 | L16: 0.07651109411 | M16: 1.622544833
A17: M | C17: 7.39466896 | L17: 2.677888294
A18: N | L18: 2.142310635 | M18: 0.0853970965
A19: O | L19: 18.74521806
A20: P | L20: 10.48201989
A21: Q | L21: 0.1530221882
A22: R | L22: 0.4590665647
A23: S | L23: 0.07651109411
A24: T
B26: =SUM(B5:B23) -> 100 | C26: 100 | D26: 100 | E26: 100 | F26: 100 | G26: 100 | H26: 100 | I26: 100 | J26: 100 | K26: 100 | L26: 100 | M26: 100
A29: 6652 other clones
A30: allele/SSR | B30: 0019 | C30: 1016 | D30: 1024 | E30: 2005 | F30: 2022 | G30: 2028 | H30: 3009 | I30: 3012 | J30: 3023 | K30: 5136 | L30: 5148 | M30: SSR1
A31: A | B31: 1.815864925 | C31: 0.05073244974 | D31: 1.56203064 | E31: 24.27363469 | F31: 0.0476145129 | G31: 36.73681862 | H31: 0.1755852843 | I31: 0.8435291436 | J31: 37.20322216 | K31: 0.2068252327 | L31: 2.599186434 | M31: 9.414845173
A32: B | B32: 26.90347244 | C32: 0.1078064557 | D32: 7.479723641 | E32: 31.43874372 | F32: 29.07342158 | G32: 17.21573585 | H32: 16.22909699 | I32: 47.7011931 | J32: 22.94375353 | K32: 0.5630242445 | L32: 8.65338898 | M32: 2.720856102
A33: C | B33: 0.310608474 | C33: 3.735176612 | D33: 44.47281466 | E33: 0.6230529595 | F33: 2.199790496 | G33: 32.18561761 | H33: 1.789297659 | I33: 18.56524052 | J33: 3.900508762 | K33: 16.5689992 | L33: 1.357705109 | M33: 3.033925319
A34: D | B34: 10.71201019 | C34: 28.25163295 | D34: 7.765094623 | E34: 31.82020472 | F34: 1.971240834 | G34: 1.792221313 | H34: 5.16722408 | I34: 16.04225245 | J34: 35.95251555 | K34: 7.526140411 | L34: 0.0475460933 | M34: 28.17622951
A35: E | B35: 1.879579484 | C35: 1.078064557 | D35: 30.474617 | E35: 0.2415919639 | F35: 58.43253024 | G35: 4.84866513 | H35: 0.7107023411 | I35: 1.725055095 | K35: 27.22624382 | L35: 1.48977759 | M35: 3.329918033
A36: F | B36: 37.47212488 | C36: 3.525905257 | D36: 0.2778612196 | E36: 11.60277195 | F36: 0.0476145129 | G36: 4.075258422 | H36: 25.05016722 | I36: 14.84155331 | K36: 30.16775824 | L36: 2.535791642 | M36: 16.65528233
A37: G | B37: 18.78783052 | C37: 19.3227218 | D37: 7.92279964 | F37: 8.22778783 | G37: 2.744106492 | H37: 48.89632107 | I37: 0.2811763812 | K37: 0.2585315408 | L37: 4.46933277 | M37: 1.81010929
A38: H | B38: 1.55304237 | C38: 6.487412011 | D38: 0.04505857615 | G38: 0.193351677 | H38: 0.1672240803 | K38: 17.16649431 | L38: 0.02641449628 | M38: 0.1593806922
A39: I | B39: 0.5097164702 | C39: 0.1902466865 | G39: 0.2082248829 | H39: 0.7107023411 | K39: 0.2585315408 | L39: 16.01246764 | M39: 29.28620219
A40: J | B40: 0.05575023893 | C40: 0.5009829412 | H40: 0.4933110368 | K40: 0.04596116282 | L40: 25.42659411 | M40: 3.011156648
A41: K | C41: 0.07609867461 | H41: 0.3929765886 | K41: 0.0114902907 | L41: 0.2324475672 | M41: 0.4098360656
A42: L | C42: 27.80138246 | H42: 0.1505016722 | L42: 1.315441915 | M42: 1.81010929
A43: M | C43: 8.694273575 | H43: 0.05852842809 | L43: 4.11009562 | M43: 0.02276867031
A44: N | C44: 0.01902466865 | H44: 0.008361204013 | L44: 1.658830366 | M44: 0.1593806922
A45: O | C45: 0.1014648995 | L45: 17.86676528
A46: P | C46: 0.05707400596 | L46: 11.91293782
A47: Q | L47: 0.1954672724
A48: R | L48: 0.04226319404
A49: S | L49: 0.01584869777
A50: T | L50: 0.03169739553
B51: =SUM(B31:B50) -> 100 | C51: =SUM(C31:C50) -> 100 | D51: 100 | E51: 100 | F51: 100 | G51: 100 | H51: 100 | I51: 100 | J51: 100 | K51: 100 | L51: 100 | M51: 100
A54: Allele | B54: 0019 | C54: 1016 | D54: 1024 | E54: 2005 | F54: 2022 | G54: 2028 | H54: 3009 | I54: 3012 | J54: 3023 | K54: 5136 | L54: 5148 | M54: SSR1
A55: A | B55: =IF(IF(B5="",0,B5)-IF(B31="",0,B31)=0,"",IF(B5="",0,B5)-IF(B31="",0,B31)) -> -1.579178535 | C55: =IF(IF(C5="",0,C5)-IF(C31="",0,C31)=0,"",IF(C5="",0,C5)-IF(C31="",0,C31)) -> 0.03525207304 | D55: -1.449671089 | E55: -0.4060388687 | F55: -0.0476145129 | G55: 5.171005602 | H55: 0.5370037894 | I55: -0.07429837432 | J55: 3.177327523 | K55: -0.03918063922 | L55: 1.37939046 | M55: -1.643709392
A56: B | B56: -1.578028656 | C56: =IF(IF(C6="",0,C6)-IF(C32="",0,C32)=0,"",IF(C6="",0,C6)-IF(C32="",0,C32)) -> -0.1078064557 | D56: -6.243768585 | E56: -2.083343025 | F56: 1.623629359 | G56: -4.353999517 | H56: 3.485867381 | I56: -0.7781161767 | J56: -2.330645711 | K56: -0.5630242445 | L56: 3.588386078 | M56: -0.9275170755
A57: C | B57: -0.1922652788 | C57: =IF(IF(C7="",0,C7)-IF(C33="",0,C33)=0,"",IF(C7="",0,C7)-IF(C33="",0,C33)) -> 2.369724505 | D57: 4.066511184 | E57: -0.6230529595 | F57: -2.199790496 | G57: 2.219527085 | H57: 0.2297047164 | I57: -1.092713047 | J57: -1.152094386 | K57: -5.755922917 | L57: -0.8986385439 | M57: 3.114665629
A58: D | B58: -1.126211378 | C58: =IF(IF(C8="",0,C8)-IF(C34="",0,C34)=0,"",IF(C8="",0,C8)-IF(C34="",0,C34)) -> 2.272872638 | D58: 0.437152568 | E58: -3.945640257 | F58: -1.703144319 | G58: -0.2916854076 | H58: -0.5353951016 | I58: -3.514779923 | J58: 0.3054125729 | K58: 4.125158834 | L58: -0.0475460933 | M58: -1.446938304
A59: E | B59: 1.552373179 | C59: =IF(IF(C9="",0,C9)-IF(C35="",0,C35)=0,"",IF(C9="",0,C9)-IF(C35="",0,C35)) -> 0.03973423917 | D59: 1.098416706 | E59: -0.2415919639 | F59: -0.5236830502 | G59: 1.903746446 | H59: -0.7107023411 | I59: -1.615164985 | K59: 2.195382329 | L59: 1.723688363 | M59: -2.90293255
A60: F | B60: -1.49579352 | C60: =IF(IF(C10="",0,C10)-IF(C36="",0,C36)=0,"",IF(C10="",0,C10)-IF(C36="",0,C36)) -> -3.181967166 | D60: -0.2778612196 | E60: 7.299667074 | F60: -0.0476145129 | G60: -2.253179108 | H60: 7.135105935 | I60: 6.806798339 | K60: 1.684714513 | L60: -2.076725078 | M60: 0.9365195472
A61: G | B61: 5.590867706 | C61: =IF(IF(C11="",0,C11)-IF(C37="",0,C37)=0,"",IF(C11="",0,C11)-IF(C37="",0,C37)) -> -1.523925579 | D61: 2.414279012 | F61: 2.898217532 | G61: -2.208200812 | H61: -8.753803256 | I61: 0.2682741683 | K61: -0.2585315408 | L61: -3.321666358 | M61: 2.715936825
A62: H | B62: -0.6062968081 | C62: =IF(IF(C12="",0,C12)-IF(C38="",0,C38)=0,"",IF(C12="",0,C12)-IF(C38="",0,C38)) -> 2.79891645 | D62: -0.04505857615 | G62: -0.193351677 | H62: 0.07030561094 | K62: -1.156435637 | L62: -0.02641449628 | M62: -0.1593806922
A63: I | B63: -0.5097164702 | C63: =IF(IF(C13="",0,C13)-IF(C39="",0,C39)=0,"",IF(C13="",0,C13)-IF(C39="",0,C39)) -> -0.1902466865 | G63: 0.006137389367 | H63: -0.7107023411 | K63: -0.1747092441 | L63: 1.585084003 | M63: 1.883738036
A64: J | B64: -0.05575023893 | C64: =IF(IF(C14="",0,C14)-IF(C40="",0,C40)=0,"",IF(C14="",0,C14)-IF(C40="",0,C40)) -> -0.4149984184 | H64: -0.4933110368 | K64: -0.04596116282 | L64: 0.6636889762 | M64: -2.754965359
A65: K | C65: =IF(IF(C15="",0,C15)-IF(C41="",0,C41)=0,"",IF(C15="",0,C15)-IF(C41="",0,C41)) -> 0.7837465532 | H65: -0.03668205181 | K65: -0.0114902907 | L65: -0.2324475672 | M65: 1.468900057
A66: L | C66: =IF(IF(C16="",0,C16)-IF(C42="",0,C42)=0,"",IF(C16="",0,C16)-IF(C42="",0,C42)) -> -1.404133964 | H66: -0.1505016722 | L66: -1.23893082 | M66: -0.1875644561
A67: M | C67: =IF(IF(C17="",0,C17)-IF(C43="",0,C43)=0,"",IF(C17="",0,C17)-IF(C43="",0,C43)) -> -1.299604615 | H67: -0.05852842809 | L67: -1.432207327 | M67: -0.02276867031
A68: N | C68: =IF(IF(C18="",0,C18)-IF(C44="",0,C44)=0,"",IF(C18="",0,C18)-IF(C44="",0,C44)) -> -0.01902466865 | H68: -0.008361204013 | L68: 0.4834802689 | M68: -0.07398359567
A69: O | C69: =IF(IF(C19="",0,C19)-IF(C45="",0,C45)=0,"",IF(C19="",0,C19)-IF(C45="",0,C45)) -> -0.1014648995 | L69: 0.8784527758
A70: P | C70: =IF(IF(C20="",0,C20)-IF(C46="",0,C46)=0,"",IF(C20="",0,C20)-IF(C46="",0,C46)) -> -0.05707400596 | L70: -1.430917927
A71: Q | C71: =IF(IF(C21="",0,C21)-IF(C47="",0,C47)=0,"",IF(C21="",0,C21)-IF(C47="",0,C47)) ->  | L71: -0.04244508422
A72: R | C72: =IF(IF(C22="",0,C22)-IF(C48="",0,C48)=0,"",IF(C22="",0,C22)-IF(C48="",0,C48)) ->  | L72: 0.4168033706
A73: S | B73: =IF(IF(A3="",0,A3)-IF(B49="",0,B49)=0,"",IF(A3="",0,A3)-IF(B49="",0,B49)) ->  | C73: =IF(IF(C23="",0,C23)-IF(C49="",0,C49)=0,"",IF(C23="",0,C23)-IF(C49="",0,C49)) ->  | L73: 0.06066239634
A74: T | B74: =IF(IF(B25="",0,B25)-IF(B50="",0,B50)=0,"",IF(B25="",0,B25)-IF(B50="",0,B50)) ->  | L74: -0.03169739553
A78: Allele | B78: 0019 | C78: 1016 | D78: 1024 | E78: 2005 | F78: 2022 | G78: 2028 | H78: 3009 | I78: 3012 | J78: 3023 | K78: 5136 | L78: 5148 | M78: SSR1
A79: A | B79: =IF(B55="","",B55/B31*100) -> -86.96563895 | C79: =IF(C55="","",C55/C31*100) -> 69.48624248 | D79: -92.806828 | E79: -1.672756775 | F79: -100 | G79: 14.07581221 | H79: 305.8364438 | I79: -8.808038808 | J79: 8.540463269 | K79: -18.94383906 | L79: 53.07008541 | M79: -17.45869806
A80: B | B80: =IF(B56="","",B56/B32*100) -> -5.86552037 | C80: -100 | D80: -83.47592618 | E80: -6.626673901 | F80: 5.584583001 | G80: -25.29081275 | H80: 21.47912101 | I80: -1.631230009 | J80: -10.1580838 | K80: -100 | L80: 41.46798539 | M80: -34.08916314
A81: C | B81: -61.89956001 | C81: 63.44343926 | D81: 9.143813394 | E81: -100 | F81: -100 | G81: 6.89602142 | H81: 12.83770284 | I81: -5.88580065 | J81: -29.53702853 | K81: -34.73911037 | L81: -66.18805057 | M81: 102.6612491
A82: D | B82: -10.51353908 | C82: 8.045101826 | D82: 5.629713342 | E82: -12.39979533 | F82: -86.39960627 | G82: -16.2750775 | H82: -10.36136799 | I82: -21.90951635 | J82: 0.8494887444 | K82: 54.8110799 | L82: -100 | M82: -5.135315581
A83: E | B83: 82.59151539 | C83: 3.68570128 | D83: 3.604365908 | E83: -100 | F83: -0.8962183361 | G83: 39.26331052 | H83: -100 | I83: -93.62976231 | K83: 8.063478542 | L83: 115.7010532 | M83: -87.17729751
A84: F | B84: -3.991749932 | C84: -90.24539612 | D84: -100 | E84: 62.91313064 | F84: -100 | G84: -55.2892326 | H84: 28.48326668 | I84: 45.86311282 | K84: 5.584486921 | L84: -81.89651875 | M84: 5.622958102
A85: G | B85: 29.75792069 | C85: -7.886702481 | D85: 30.47254912 | F85: 35.22474804 | G85: -80.47066751 | H85: -17.90278504 | I85: 95.41134541 | K85: -100 | L85: -74.32130318 | M85: 150.0426985
A86: H | B86: -39.03929601 | C86: 43.14380596 | D86: -100 | G86: -100 | H86: 42.04275534 | K86: -6.736585908 | L86: -100 | M86: -100
A87: I | B87: -100 | C87: -100 | G87: 2.947481243 | H87: -100 | K87: -67.57753562 | L87: 9.899061395 | M87: 6.432169061
A88: J | B88: -100 | C88: -82.8368362 | H88: -100 | K88: -100 | L88: 2.610215797 | M88: -91.49193086
A89: K | C89: 1029.908283 | H89: -9.334411482 | K89: -100 | L89: -100 | M89: 358.411614
A90: L | C90: -5.050590438 | H90: -100 | L90: -94.18362048 | M90: -10.36205146
A91: M | C91: -14.94782289 | H91: -100 | L91: -34.84608289 | M91: -100
A92: N | C92: -100 | H92: -100 | L92: 29.14585354 | M92: -46.41942174
A93: O | C93: -100 | L93: 4.91668616
A94: P | C94: -100 | L94: -12.0114614
A95: Q | L95: -21.71467565
A96: R | B96: =IF(B72="","",B72/B48*100) ->  | L96: 986.2088753
A97: S | L97: 382.7595001
A98: T | L98: -100
A99: new allele
A103: Total allele frequencies (%) | E103: 7085 clones
A104: Allele/SSR | B104: 0019 | C104: 1016 | D104: 1024 | E104: 2005 | F104: 2022 | G104: 2028 | H104: 3009 | I104: 3012 | J104: 3023 | K104: 5136 | L104: 5148 | M104: SSR1
A105: A | B105: 1.7 | C105: 0.05 | D105: 1.5 | E105: 24.2 | F105: 0.04 | G105: 37.1 | H105: 0.21 | I105: 0.8 | J105: 37.4 | K105: 0.2 | L105: 2.7 | M105: 9.3
A106: B | B106: 26.8 | C106: 0.1 | D106: 7.1 | E106: 31.3 | F106: 29.2 | G106: 16.9 | H106: 16.5 | I106: 47.7 | J106: 22.8 | K106: 0.5 | L106: 8.9 | M106: 2.7
A107: C | B107: 0.3 | C107: 3.9 | D107: 44.7 | E107: 0.6 | F107: 2.1 | G107: 32.3 | H107: 1.8 | I107: 18.5 | J107: 3.8 | K107: 16.2 | L107: 1.3 | M107: 3.2
A108: D | B108: 10.6 | C108: 28.4 | D108: 7.8 | E108: 31.6 | F108: 1.9 | G108: 1.8 | H108: 5.1 | I108: 15.8 | J108: 36 | K108: 7.8 | L108: 0.04 | M108: 28.1
A109: E | B109: 2 | C109: 1.1 | D109: 30.5 | E109: 0.23 | F109: 58.4 | G109: 5 | H109: 0.66 | I109: 1.6 | K109: 27.4 | L109: 1.6 | M109: 3.1
A110: F | B110: 37.4 | C110: 3.3 | D110: 0.26 | E110: 12.1 | F110: 0.04 | G110: 3.9 | H110: 25.5 | I110: 15.3 | K110: 30.3 | L110: 2.4 | M110: 16.7
A111: G | B111: 19.1 | C111: 19.2 | D111: 8.1 | F111: 8.4 | G111: 2.6 | H111: 48.3 | I111: 0.3 | K111: 0.24 | L111: 4.3 | M111: 2
A112: H | B112: 1.5 | C112: 6.7 | D112: 0.04 | G112: 0.18 | H112: 0.17 | K112: 17.1 | L112: 0.02 | M112: 0.15
A113: I | B113: 0.5 | C113: 0.18 | G113: 0.21 | H113: 0.7 | K113: 0.25 | L113: 16.1 | M113: 29.4
A114: J | B114: 0.05 | C114: 0.5 | H114: 0.5 | K114: 0.04 | L114: 25.5 | M114: 2.8
A115: K | C115: 0.13 | H115: 0.4 | K115: 0.01 | L115: 0.2 | M115: 0.5
A116: L | C116: 27.7 | H116: 0.14 | L116: 1.2 | M116: 1.8
A117: M | C117: 8.6 | H117: 0.05 | L117: 4 | M117: 0.02
A118: N | C118: 0.02 | H118: 0.01 | L118: 1.7 | M118: 0.15
A119: O | C119: 0.09 | L119: 17.9
A120: P | C120: 0.05 | L120: 11.8
A121: Q | L121: 0.19
A122: R | L122: 0.07
A123: S | L123: 0.02
A124: T | L124: 0.03
A125: 31 alleles not found in AEGIS study

Sheet Allele_size
A1: Allele | B1: 0019 | C1: 1016 | D1: 1024 | E1: 2005 | F1: 2022 | G1: 2028 | H1: 3009 | I1: 3012 | J1: 3023 | K1: 5136 | L1: 5148 | M1: SSR1
A2: A | B2: 167.1 | C2: 234.4 | D2: 138.3 | E2: 153.1 | F2: 166.1 | G2: 286.5 | H2: 142.1 | I2: 165.3 | J2: 176.8 | K2: 213.7 | L2: 402.8 | M2: 201.5
A3: B | B3: 193.2 | C3: 241.4 | D3: 141.8 | E3: 159.5 | F3: 178.1 | G3: 295.4 | H3: 146.6 | I3: 167.3 | J3: 178.8 | K3: 216.4 | L3: 416.6 | M3: 204.7
A4: C | B4: 197 | C4: 243.4 | D4: 145.1 | E4: 165.6 | F4: 181.1 | G4: 365.4 | H4: 150.5 | I4: 195.4 | J4: 186.6 | K4: 219.4 | L4: 422.7 | M4: 206.7
A5: D | B5: 199.3 | C5: 246.5 | D5: 145.9 | E5: 171.7 | F5: 184.2 | G5: 388.2 | H5: 153.1 | I5: 197.4 | J5: 196.1 | K5: 225.3 | L5: 425.2 | M5: 208.8
A6: E | B6: 204.4 | C6: 247.6 | D6: 148.9 | E6: 184.2 | F6: 192.7 | G6: 395.1 | H6: 155.1 | I6: 199.8 | K6: 228 | L6: 428.1 | M6: 212.7
A7: F | B7: 208.4 | C7: 249.4 | D7: 152.4 | E7: 196.3 | F7: 221.4 | G7: 401 | H7: 159.4 | I7: 201.2 | K7: 231 | L7: 431.9 | M7: 214.8
A8: G | B8: 235.5 | C8: 250.5 | D8: 155.5 | F8: 233.1 | G8: 405.5 | H8: 165.5 | I8: 211.6 | K8: 236.5 | L8: 433.3 | M8: 216.8
A9: H | B9: 175.3 | C9: 255.6 | D9: 158.1 | G9: 408.1 | H9: 167.5 | K9: 248.2 | L9: 440.2 | M9: 219
A10: I | B10: 169.2 | C10: 256.6 | G10: 292.8 | H10: 171 | K10: 250.7 | L10: 446.4 | M10: 220.7
A11: J | B11: 181.5 | C11: 258.5 | H11: 175.7 | K11: 245 | L11: 450.7 | M11: 224.8
A12: K | C12: 259.6 | H12: 157.6 | K12: 242 | L12: 452.8 | M12: 228.7
A13: L | C13: 261.6 | H13: 161.4 | K13: 222 | L13: 457.2 | M13: 202.9
A14: M | C14: 262.7 | H14: 173.8 | L14: 461.6 | M14: 223
A15: N | C15: 265.8 | H15: 152.1 | L15: 464.6 | M15: 210.7
A16: O | C16: 268.8 | L16: 471
A17: P | C17: 253.7 | L17: 475.1
A18: Q | L18: 477.4
A19: R | L19: 420.5
A20: S | L20: 442.6
A21: T | L21: 473.4

Sheet Minimum_list
A1: Key | B1: Variety Denomination | C1: sample | D1: 0019 | E1: 1016 | F1: 1024 | G1: 2005 | H1: 2022 | I1: 2028 | J1: 3009 | K1: 3012 | L1: 3023 | M1: 5136 | N1: 5148 | O1: SSR1 | P1: alternative1 | Q1: alt2 | R1: alt3 | S1: alt4 | T1: alt5
A2: AEG-0036 | B2: Rapid | C2: CZE | D2: CFG | E2: CGL | F2: C | G2: ABDF | H2: BE | I2: AC | J2: BDG | K2: BF | L2: AD | M2: DF | N2: BIJP | O2: CDF
A3: DAFF-09-018 | B3: Roslin_Rivera | C3: IRL | D3: FG | E3: DJL | F3: BC | G3: ABD | H3: BE | I3: C | J3: BFG | K3: ABC | L3: ABD | M3: EF | N3: BIJO | O3: DI
A4: AEG-0236 | B4: Saphir | C4: GBR | D4: BE | E4: ADG | F4: CE | G4: ADF | H4: E | I4: AD | J4: GK | K4: BCF | L4: AD | M4: EF | N4: IJ | O4: FI
A5: AEG-0171 | B5: Sherine | C5: GBR | D5: DH | E5: GL | F5: ACEG | G5: ABD | H5: BG | I5: AFG | J5: BFG | K5: BDE | L5: ACD | M5: CF | N5: GP | O5: DJ
A6: AEG-10225 | B6: Astra_(1983) | C6: DEU | D6: G | E6: DG | F6: CE | G6: ABD | H6: E | I6: ABF | J6: BFG | K6: BD | L6: D | M6: AF | N6: BJOR | O6: FK | P6: AEG-0044
A7: 13/620 | B7: Pentland_Marble | C7: GBR | D7: BFG | E7: CDG | F7: BCE | G7: ABF | H7: BEG | I7: AC | J7: BG | K7: B | L7: BD | M7: CEI | N7: INOP | O7: FIL
A8: AEG-12439 | B8: Petra_(1991) | C8: DEU | D8: F | E8: DGM | F8: CD | G8: ABD | H8: E | I8: ACD | J8: FG | K8: BC | L8: BD | M8: FH | N8: BIOS | O8: DFI
A9: AEG-0241 | B9: Producent | C9: GBR | D9: AF | E9: DLM | F9: C | G9: AD | H9: E | I9: BG | K9: ABCD | L9: AB | M9: EFH | N9: LMOP | O9: ADI
A10: AEG-0186 | B10: Venus | C10: GBR | D10: FG | E10: CDG | F10: CG | G10: AD | H10: E | I10: BC | J10: GH | K10: BD | L10: ABD | M10: EF | N10: IJ | O10: CFIN
A11: AEG-11470 | B11: Gloria_(1972) | C11: DEU | D11: BDG | E11: HL | F11: BCD | G11: ABD | H11: DE | I11: BC | J11: B | K11: AB | L11: ABD | M11: CDFH | N11: GJM | O11: BD | P11: AEG-0052
A12: AEG-10384 | B12: Pepo_(1991) | C12: DEU | D12: BF | E12: DG | F12: CE | G12: AB | H12: BEG | I12: ACI | J12: BF | K12: BC | L12: AD | M12: FH | N12: BJO | O12: FI | P12: AEG-0077
A13: AEG-0163 | B13: Odenwalder_Blaue | C13: GBR | D13: B | E13: DL | F13: C | G13: BDF | H13: E | I13: CE | J13: BDF | K13: BG | L13: AD | M13: DEF | N13: BJOQ | O13: DI | P13: AEG-P021
A14: AEG-0181 | B14: Foxton | C14: GBR | D14: BF | E14: DF | F14: CEG | G14: ABDF | H14: BE | I14: AB | J14: DF | K14: BD | L14: ABCD | M14: CFH | N14: BGJO | O14: EI | P14: AEG-0231 | Q14: AEG-10568 | R14: UK-0611
A15: AEG-0011 | B15: Bella | C15: CZE | D15: BD | E15: DL | F15: CD | G15: BD | H15: E | I15: AC | J15: FG | K15: C | L15: AD | M15: CDE | N15: BCGJ | O15: DGI
A16: AEG-12317 | B16: Vitelotte | C16: DEU | D16: G | E16: EGHK | F16: CE | G16: ADF | H16: BE | I16: AC | J16: AF | K16: BF | L16: AD | M16: DE | N16: ABGO | O16: FIL | P16: AEG-P026 | Q16: AEG-0073 | R16: AEG-0040 | S16: AEG-P025 | T16: AEG-0209
A17: AEG-0098 | B17: Ringerikspotet | C17: SWE | D17: BF | E17: CDHL | F17: CEG | G17: ABDF | H17: BE | I17: AC | J17: CDF | K17: BD | L17: AD | M17: EFH | N17: AEJO | O17: CDIK | P17: AEG-0198
A18: AEG-10497 | B18: Gunda_(1960) | C18: DEU | D18: BFG | E18: DG | F18: CDE | G18: ABD | H18: BE | I18: ACD | J18: FG | K18: BF | L18: A | M18: CEF | N18: FJO | O18: FGI | P18: AEG-Q001 | Q18: AEG-P030 | R18: DAFF-J-010 | S18: DAFF-G-028 | T18: AEG-0202
A20: Allele_count
A21: A | D21: 1 | E21: 1 | F21: 1 | G21: 15 | I21: 12 | J21: 1 | K21: 3 | L21: 14 | M21: 1 | N21: 2 | O21: 1
A22: B | D22: 9 | F22: 3 | G22: 13 | H22: 9 | I22: 5 | J22: 8 | K22: 16 | L22: 7 | N22: 9 | O22: 1
A23: C | D23: 1 | E23: 4 | F23: 17 | I23: 12 | J23: 1 | K23: 6 | L23: 2 | M23: 6 | N23: 1 | O23: 3
A24: D | D24: 3 | E24: 13 | F24: 4 | G24: 15 | H24: 1 | I24: 3 | J24: 4 | K24: 6 | L24: 15 | M24: 5 | O24: 9
A25: E | D25: 1 | E25: 1 | F25: 9 | H25: 16 | I25: 1 | K25: 1 | M25: 10 | N25: 1 | O25: 1
A26: F | D26: 10 | E26: 1 | G26: 7 | I26: 2 | J26: 11 | K26: 4 | M26: 14 | N26: 1 | O26: 9
A27: G | D27: 8 | E27: 10 | F27: 4 | H27: 3 | I27: 2 | J27: 10 | K27: 1 | N27: 5 | O27: 2
A28: H | D28: 1 | E28: 3 | J28: 1 | M28: 6
A29: I | I29: 1 | M29: 1 | N29: 6 | O29: 13
A30: J | E30: 1 | N30: 12 | O30: 1
A31: K | E31: 1 | J31: 1 | O31: 2
A32: L | E32: 8 | N32: 1 | O32: 2
A33: M | E33: 2 | N33: 2
A34: N | N34: 1 | O34: 1
A35: O | N35: 11
A36: P | N36: 4
A37: Q | N37: 1
A38: R | N38: 1
A39: S | N39: 1
A40: Totals | D40: 8 | E40: 11 | F40: 6 | G40: 4 | H40: 4 | I40: 8 | J40: 8 | K40: 7 | L40: 4 | M40: 7 | N40: 16 | O40: 12 | P40: 95
